Workbook

Sheet Identificação
B4: SECRETARIA REGIONAL DE EDUCAÇÃO, CIÊNCIA E TECNOLOGIA
B5: DIREÇÃO REGIONAL DE ADMINISTRAÇÃO ESCOLAR
G7: BALANÇO SOCIAL ____ | J7: 2022
B8: (MAPAS DE RECOLHA v.3.4.2)
C15: DESIGNAÇÃO DO ORGANISMO:
C17: ESCOLA BÁSICA E SECUNDÁRIA COM PRÉ-ESCOLAR E CRECHE DO PORTO MONIZ
C21: Versão n.º: | D21: 1 | E21: Data: | F21: 2023-07-10 | G21: (Por favor indique um número de versão e data para cada envio atualizado do balanço)
B24: Nome da pessoa responsável pelo preenchimento: | H24: Maria da Graça Pereira Jardim
B26: Telefone (direto): | F26: 291850106 | I26: Endereço eletrónico: | M26: graca.p.jardim@madeira.gov.pt
B28: Versão 3.4.2, de 6-7-2023
B32: - Na versão 3.3 foi aperfeiçoada a validação do mapa referente às habilitações (de nível superior), sendo agora feito o confronto com o n.º de trabalhadores pertencentes a carreiras para as quais seja exigida habilitação de nível superior; - Na versão 3.3 foi aperfeiçoada a validação do mapa referente à antiguidade, sendo agora feito naquele mapa o confronto entre o total de homens e mulheres, face aos trabalhadores registados por carreira; - Na versão 3.3 foram aditadas nos mapas referentes às saídas linhas específicas para discriminar contratos por tempo indeterminado e contrato a termo resolutivo, permitindo assim melhorar a validação das entradas e saídas; - Na versão 3.3 foi alterado para alerta, o erro que se apresentava quando não eram declarados custos para ações de prevenção na área da segurança; - Na versão 3.3 foram aclaradas as notas de preenchimento dos mapas referentes aos encargos com o pessoal e formação profissional; - Na versão 3.3.1. foi corrigida a linha de soma do mapa referente às saídas; - Na versão 3.3.2. foi corrigida a validação do mapa das antiguidades que estava a reportar um erro indevidamente; - Na versão 3.3.3. foi corrigida a validação da estrutura habilitacional que estava a considerar que os trabalhadores dos corpos especiais teriam que ter licenciatura, quando na verdade os técnicos de informática, que se incluem naquele grupo, apenas se exige o 12.º ano de escolaridade, tendo igualmente sido corrigido o facto de não estar a ser considerados os detentores de bacharelato na carreira docente; - Na versão 3.3.4. foi corrigido o simulador que devido ao aditamento ao mapa das saídas dos contratos a termo resolutivo, encerrava ainda fórmulas desatualizadas; - Na versão 3.3.5. foi corrigida a validação do mapa das saídas, que se referia à linha respeitante a "OUTROS" como sendo 1.10.3, quando na verdade respeitava à linha 1.10.4. - Na versão 3.3.6 foi aditado um esclarecimento na folha das FAQ sobre a contabilização da antiguidade na Função Pública. - Na versão 3.3.7 foi corrigida a validação dos recursos humanos que dava como erro o número de contratos por tempo indeterminado, em algumas situações em que o organismo tenha contratos por tempo indeterminado e contratos a termo resolutivo, sem que houvesse de facto erros na contagem. - Na versão 3.3.8 foi corrigido o mapa 1.12, que adicionava erradamente o somatório das diferentes formas de caducidade em 1.12.1 aos dados preenchidos em 1.12.1.1, 1.12.1.2 e 1.12.1.3. Foi igualmente corrigida a resposta à pergunta 11 das FAQ, por forma a esclarecer que um docente que exerça funções em mais que uma escola/serviço, deverá ser contabilizado em ambos as entidades. - Na versão 3.4 foram introduzidas as alterações constantes do Decreto Regulamentar Regional n.º 4/2023/M, de 10 de janeiro e ajustadas todas as fórmulas de validação em consonância com as mesmas. - Na versão 3.4.1 foi corrigo um erro na mensagem de validação do quadro 1, que apresentava a mensagem "preenchido" a vermelho, quando deveria estar a verde. Foi igualmente corrigida a soma da linha das mulheres no quadro onde são introduzidos os valores do ano anterior, que provocava uma falha na validação. - Na versão 3.4.2 foi aditada às anotações a carreira de técnico de apoio à infância, como carreira a integrar o grupo de corpos e carreiras especiais. Foi igualmente acrescentada uma linha para identificar as meias jornadas.

Sheet Instruções
C3: Notas de preenchimento
C5: ! | D5: O presente ficheiro deverá ser preenchido por alguém com conhecimentos do Microsoft Excel.
C6: ! | D6: Preencha os campos constantes do separador 'IDENTIFICAÇÃO, nomeadamente a 'Designação do organismo', o 'Nome da pessoa responsável pelo preenchimento' e o respetivo 'Telefone (directo)' e 'Endereço eletrónico';
C7: ! | D7: Antes de iniciar o preenchimento de cada quadro, leia atentamente o título e as respectivas anotações;
C8: ! | D8: Todas as células desbloqueadas ou em branco deverão ser preenchidas;
C9: ! | D9: As células que contêm à priori o número zero encontram-se bloqueadas, visto serem preenchidas automáticamente pelo programa;
C10: ! | D10: Sempre que não existirem ocorrências deverá ser introduzido o número zero (0);
C11: ! | D11: Quando for necessário fazer uso de números decimais, deverá utilizar uma vírgula e não um ponto para separar os números inteiros dos decimais. (Ex: 1,5 e não 1.5);
C12: ! | D12: Não deverá fazer uso de pontos ou espaços para separar os milhares.
C13: ! | D13: Após concluir o preenchimento dos mapas, clique no separador 'Validação' e verifique para cada quadro se existem mensagens de erro. Leia-as cuidadosamente e, caso seja necessário, rectifique os mapas antes de remetê-lo por email para o endereço indicado.
C14: ! | D14: Em caso de dúvidas no preenchimento poderá entrar em contacto com o respetivo técnico da Divisão de Apoio Técnico da Direção Regional de Administração Escolar, de acordo com a distribuição anexa ao ofício circular;
C15: ! | D15: Deverá ser privilegiado o contacto por correio eletrónico, uma vez que as resposta que serão dadas poderão mais facilmente ser partilhadas com os restantes serviços ou estabelecimentos;

Sheet FAQ's
C3: Perguntas frequentes
D5: Quadro 1 - RECURSOS HUMANOS
C7: 1 | D7: Em que coluna devem ser contabilizados os trabalhadores que se encontram a exercer funções ao abrigo de programas do Instituto do Emprego? Os trabalhadores ao abrigo de programas do Instituto do Emprego devem ser introduzidos nas colunas de acordo com as funções que desempenhem. Por exemplo, um trabalhador que exerça as funções de assistente técnico (área administrativa), deverá ser colocado na coluna ‘assistente técnico’, na linha 1.1.7 ‘Outros’.
C8: 2 | D8: No caso das áreas escolares, onde deverão ser contabilizados os docentes do ‘desporto’ e da ‘expressão artística’ que se encontrem a exercer funções em mais do que um estabelecimento? Nestes casos, o docente deverá ser contado na escola em que tenha a maior carga horária que, em princípio, será aquela com a qual o docente tem vínculo.
C9: 3 | D9: Deverão ser contabilizados no balanço social dos estabelecimentos de educação e ensino, os docentes especializados que transitaram para as escolas? Sim, os docentes dos serviços técnicos da Direcção Regional de Educação que transitaram para as escolas, bem como aqueles que se encontram em regime de mobilidade, deverão ser contabilizados no balanço social da respetiva escola. Os docentes que não têm mobilidade formalizada, mas que prestam serviço em vários estabelecimentos (por exemplo, em estabelecimentos e instituições privadas), serão contabilizados no balanço social da Direção Regional de Educação.
C10: 4 | D10: Deverão ser incluídos os docentes que se encontrem a beneficiar de equiparação a bolseiro ou licença sabática? Sim. Atendendo a que estas ‘licenças’ são consideradas como exercício efectivo de funções, os docentes que se encontrem nesta situação deverão ser contabilizados. Ao nível dos Quadro 1.15 ‘Modalidades de Horário’, estes docentes poderão ser incluídos na linha 1.15.1 ‘ Horário rígido’.
C11: 5 | D11: Como devem ser contabilizados os docentes que, tendo celebrado um contrato com uma determinada escola, foram colocados em mobilidade noutro estabelecimento na mesma data? Nestas situações, os docentes devem ser contabilizados no Quadro 1.9. ‘Admissões’ e, em simultâneo, no Quadro 1.10. ‘Saídas’. Relativamente ao motivo, os docentes devem ser contabilizados, no Quadro 1.12., na linha 1.12.5. ‘Outros’, com a indicação no respectivo campo das anotações (“Mobilidade para a escola…”).
C12: 6 | D12: No caso de um docente que se encontre destacado noutro serviço ou estabelecimento, em que balanço social deverão ser registados os encargos com as remunerações? Os encargos com os docentes destacados noutros serviços ou estabelecimentos deverão ser contabilizados no estabelecimento de origem, uma vez que é este orçamento que está a assumir a despesa.
C13: 7 | D13: Em que linha do Quadro 1. devem ser considerados os docentes? Os docentes com lugar de quadro (QE e QZP) devem ser considerados na linha 1.1.1.1 ‘Contrato de trabalho por tempo indeterminado’ atendendo a que já foi formalizada a transição para o regime de contrato de trabalho em funções públicas. Em relação aos docentes com contrato a termo resolutivo devem ser considerados na linha 1.1.1.2 ‘Contrato a termo resolutivo, certo ou incerto’.
C14: 8 | D14: Em que linha devem ser considerados os trabalhadores que transitaram para o regime de contrato de trabalho em funções públicas? Os trabalhadores com contrato de trabalho em funções públicas devem ser contados na linha 1.1.1.1 ‘Contrato por tempo indeterminado’. Em relação aos trabalhadores que mantiveram o regime de nomeação, como os inspectores, deverão ser contabilizados na linha 1.1.1 ‘Nomeação’.
C15: 9 | D15: Em que linha devem ser contabilizados os trabalhadores pertencentes a outros serviços e que se encontrem em exercício de funções no nosso serviço ao abrigo de um instrumento de mobilidade (ex: destacamento, requisição, mobilidade interna, etc.)? Os trabalhadores em mobilidade no serviço deverão ser introduzidos na linha 1.1.5.
C16: 10 | D16: E em que coluna devem ser contados os trabalhadores pertencentes a outros serviços e que se encontrem no nosso serviço em mobilidade interna intercarreiras? Os trabalhadores em mobilidade interna intercarreiras no serviço deverão ser introduzidos na coluna de acordo com as funções que estão a desempenhar. Por exemplo, um assistente operacional em mobilidade interna intercarreiras como assistente técnico deverá ser contado na coluna ‘Assistente Técnico’.
C17: 11 | D17: De que forma devem ser considerados os docentes que possuam uma acumulação, mobilidade parcial ou um contrato para exercer funções em mais do que uma escola? Os docentes que exerçam funções em mais que uma escola devem ser contabilizados em todas as escolas em que exercem efetivamente funções.
D18: Quadro 1.4 - ESTRUTURA ANTIGUIDADES
C20: 12 | D20: Como deverá ser contabilizada a antiguidade na função pública? O tempo a considerar no balanço social é apenas um dado de natureza estatística que pretende demonstrar a antiguidade total na função pública e não o tempo na carreira ou aposentação, embora em algumas situações esses tempos sejam idênticos. A contabilização deverá ser feita pela contagem integral de todos os períodos em que o trabalhador tenha mantido uma relação jurídica com a função pública, excluindo eventuais períodos em que tenha ocorrido cessação do contrato ou tempo de serviço prestado em estabelecimentos privados.
C21: 13 | D21: Como deverá ser contabilizada a antiguidade dos trabalhadores subsidiados ou prestadores de serviços? Apesar destes trabalhadores não possuírem ‘antiguidade’ na Função Pública, deverão ser contabilizados os anos de exercício de funções no serviço. Quando o trabalhador não possua um ano completo, deverá ser registado na linha 1.4.1 ‘Até 5 anos’.
D22: Quadro 1.10 - SAÍDAS
C24: 14 | D24: Em que linha devem ser contados os trabalhadores não docentes que saíram por exoneração durante o ano? Estes trabalhadores são contados na linha ‘1.10.2’ Com contrato.
C25: 15 | D25: Qual a data a considerar no caso das aposentações? A data da publicação no diário da república ou a data em que o trabalhador se desliga do serviço? Deverão considerar a data em que o trabalhador se desliga do serviço (por exemplo a data em que completa os 70 anos). Assim, se o trabalhador se desligou do serviço em dezembro, mas a publicação só ocorreu em janeiro, deve ser contabilizado como uma saída no balanço social do ano em que se desligou do serviço.
D26: Quadro 1.15 - MODALIDADES DE HORÁRIO
C28: 16 | D28: Como deverá ser contabilizado o horário dos membros dos órgãos de gestão (Directores, Presidentes, Vice-Presidentes ou Adjuntos), que exerçam também funções docentes? Nestas circunstâncias, estes docentes deverão ser contabilizados como tendo 1.15.1 ‘Horário rígido’, na coluna do pessoal ‘Dirigente’.
D29: Quadro 1.17 - AUSÊNCIAS AO TRABALHO
C31: 17 | D31: De que forma deverão ser contabilizados os dias de ausência por motivo de gravidez de risco? Os dias de ausência decorrentes de gravidez de risco deverão ser registados na linha 1.17.2 ‘Maternidade / Paternidade’.
C32: 18 | D32: Onde devem ser incluídos os dias de ausência para tratamento ambulatório, realização de consultas médicas e exames complementares de diagnóstico? Estes dias devem ser registados na linha 1.17.5 ‘Doença’ quando se trate de tratamentos do próprio trabalhador, ou na linha 1.17.7 ‘Assistência a familiares’ quando se trate tratamentos do cônjuge, ascendentes, descendentes e equiparados.
C33: 19 | D33: Em que linha do quadro 1.17 ‘Ausências ao trabalho’ devem ser contados os dias de licença parental inicial exclusiva do pai (5+5 dias obrigatórios e 10 dias facultativos)? Estes dias deverão ser introduzidos na linha 1.17.2 ‘Maternidade / parentalidade’. De igual forma, caso o pai goze dias de licença parental inicial partilhada, estas ausências deverão ser registadas na linha 1.17.2 ‘Maternidade / parentalidade’, deixando-se de utilizar a linha 1.17.3 para qualquer efeito.
C34: 20 | D34: Em que linha do quadro 1.17 ‘Ausências ao trabalho’ devem ser contabilizadas as faltas para assistência a filhos menores? Estes dias deverão ser introduzidos na linha 1.17.7 ‘Assistência a familiares’.
C35: 21 | D35: Devem ser contabilizados os períodos de ausência devido a licenças sem vencimento? Estes dias apenas devem ser contabilizados caso o trabalhador tenha sido considerado no quadro 1 'Recursos Humanos', ou seja, nas situações de regresso durante o ano em análise.
D36: Quadro 2. - ENCARGOS COM PESSOAL
C38: 22 | D38: Os encargos com os subsídios de parentalidade devem ser incluídos no mapa 2. ‘Encargos com pessoal’ ou mapa 5. ‘Prestações Sociais’? Estes encargos podem ser colocados no mapa 5. ‘Prestações Sociais’ na linha 5.8 ‘Outros’.
C39: 23 | D39: Onde devem ser enquadrados as contribuições da entidade empregadora para a Caixa Geral de Aposentações ou Segurança Social? Estes encargos devem ser introduzidos no mapa 2. ‘Encargos com pessoal’, na linha 2.16 ‘Outros’ com a respectiva descriminação no campo das observações.
C40: 24 | D40: Onde contabilizar as remunerações auferidas pelos trabalhadores na doença? Neste caso importa distinguir entre os trabalhadores abrangidos pelo regime convergente e aqueles abrangidos pelo regime geral da segurança social. Em, relação aos trabalhadores do regime convergente, que continuam a auferir a remuneração, os montantes devem ser incluídos no mapa 2. ‘Encargos com pessoal’, na linha 2.1 ‘Remuneração base’. Em relação aos trabalhadores do regime geral da segurança social, os valores não deverão ser incluídos no balanço social por não constituírem encargos do serviço / estabelecimento.
C41: 25 | D41: Em que quadro contar os subsídios por assistência a filho menor? Estes montantes devem ser contabilizados no mapa 5. ‘Prestações Sociais’ na linha 5.1 ‘Subsídios parentalidade’. Em relação aos trabalhadores do regime geral da segurança social, os valores não deverão ser incluídos no balanço social por não constituírem encargos do serviço / estabelecimento.
D42: Quadro 5. - PRESTAÇÕES SOCIAIS
C44: 26 | D44: Em que ponto deverão ser incluídos os montantes referentes à protecção na Parentalidade? Os valores referentes à protecção na parentalidade dos trabalhadores no regime de protecção social convergente, deverão ser incluídos no quadro 5. ‘Prestações Sociais’, na linha 5.1 ‘Subsídio parentalidade’, com a respectiva descriminação no campo destinado às anotações. Os valores relativos aos trabalhadores do regime geral de segurança social não deverão ser incluídos no balanço social por não constituírem encargos do serviço / estabelecimento.
D46: OUTRAS QUESTÕES
C48: 27 | D48: Todos os serviços e estabelecimentos de educação e ensino da Secretaria Regional de Educação devem preencher os mapas do balanço social? Sim. Apesar da legislação apenas obrigar o preenchimento aos serviços e organismos com 50 ou mais trabalhadores, todos os serviços e estabelecimento de educação e ensino da rede pública deverão proceder ao preenchimento dos mapas do balanço social. Note-se que esta será a única forma de obter uma visão global dos recursos humanos da SRE, dada a existência de mapas de pessoal não docente por área escolar e quadros de zona pedagógica de pessoal docente.
C49: 28 | D49: Para onde devem ser enviados os ficheiros preenchidos? Os ficheiros, devidamente preenchidos, deverão ser enviados para o endereço de correio eletrónico da DRAE: drae.sre@madeira.gov.pt.

Sheet Validação
M1: =IF(Identificação!C17="","",Identificação!C17) -> ESCOLA BÁSICA E SECUNDÁRIA COM PRÉ-ESCOLAR E CRECHE DO PORTO MONIZ
B3: MAPAS | E3: MENSAGENS
E4: =IF(OR(Identificação!C17="",Identificação!H24="",Identificação!F26="",Identificação!M26=""),"Por favor preencha todos os campos do separador 'Identificação'","") -> 
B6: Quadro 1. Recursos humanos | E6: =IF(E7="...","Preenchido",IF(E7="Por favor preencha todas as células em aberto. Se não existirem ocorrências a registar deverá introduzir o número zero.","Por preencher","Preenchido com erros!")) -> Preenchido | F6: =IF('Recursos Humanos'!P7<>0,"Por favor preencha todas as células em aberto. Se não existirem ocorrências a registar deverá introduzir o número zero.",IF('Recursos Humanos'!O39="ERRO","Ao fazer referência a 'OUTROS' no ponto 1.1.7., deverá obrigatoriamente discriminá-las no campo destinado às anotações.",IF('Recursos Humanos'!O36="ERRO","Ao incluir trabalhadores na coluna 'OUTROS', deverá obrigatoriamente discriminá-las no campo destinado às anotações.",IF('Recursos Humanos'!O42<>0,"Por favor preencha todas as células em aberto no mapa referente aos recursos humanos registados no balanço social do ano anterior. Se não existirem ocorrências a registar deverá introduzir o número zero.",G6)))) -> ... | G6: =IF('Recursos Humanos'!D48<>'Recursos Humanos'!D4,"O número de homens do grupo DIRIGENTES não pode ser diferente do valor registado no ano anterior, subtraidas as saídas e acrescidas as admissões.",IF('Recursos Humanos'!D49<>'Recursos Humanos'!D5,"O número de mulheres do grupo DIRIGENTES não pode ser diferente do valor registado no ano anterior, subtraidas as saídas e acrescidas as admissões.",H6)) -> ... | H6: =IF('Recursos Humanos'!E48<>'Recursos Humanos'!E4,"O número de homens da carreira de TÉCNICO SUPERIOR não pode ser diferente do valor registado para este grupo no ano anterior, subtraidas as eventuais saídas e acrescido das eventuais entradas",IF('Recursos Humanos'!E49<>'Recursos Humanos'!E5,"O número de mulheres da carreira de TÉCNICO SUPERIOR não pode ser diferente do valor registado para este grupo no ano anterior, subtraidas as eventuais saídas e acrescido das eventuais entradas",I6)) -> ... | I6: =IF('Recursos Humanos'!F48<>'Recursos Humanos'!F4,"O número de homens da carreira de ASSISTENTE TÉCNICO não pode ser diferente do valor registado para este grupo no ano anterior, subtraidas as eventuais saídas e acrescido das eventuais entradas",IF('Recursos Humanos'!F49<>'Recursos Humanos'!F5,"O número de mulheres da carreira de ASSISTENTE TÉCNICO não pode ser diferente do valor registado para este grupo no ano anterior, subtraidas as eventuais saídas e acrescido das eventuais entradas",J6)) -> ... | J6: =IF('Recursos Humanos'!G48<>'Recursos Humanos'!G4,"O número de homens da carreira de ASSISTENTE OPERACIONAL não pode ser diferente do valor registado para este grupo no ano anterior, subtraidas as eventuais saídas e acrescido das eventuais entradas",IF('Recursos Humanos'!G49<>'Recursos Humanos'!G5,"O número de mulheres da carreira de ASSISTENTE OPERACIONAL não pode ser diferente do valor registado para este grupo no ano anterior, subtraidas as eventuais saídas e acrescido das eventuais entradas",K6)) -> ... | K6: =IF('Recursos Humanos'!H48<>'Recursos Humanos'!H4,"O número de homens das CARREIRAS E CATEGORIAS SUBSISTENTES não pode ser diferente do valor registado para este grupo no ano anterior, subtraidas as eventuais saídas e acrescido das eventuais entradas",IF('Recursos Humanos'!H49<>'Recursos Humanos'!H5,"O número de mulheres das CARREIRAS E CATEGORIAS SUBSISTENTES não pode ser diferente do valor registado para este grupo no ano anterior, subtraidas as eventuais saídas e acrescido das eventuais entradas",L6)) -> ... | L6: =IF('Recursos Humanos'!I48<>'Recursos Humanos'!I4,"O número de homens dos CORPOS E CARREIRAS ESPECIAIS não pode ser diferente do valor registado para este grupo no ano anterior, subtraidas as eventuais saídas e acrescido das eventuais entradas",IF('Recursos Humanos'!I49<>'Recursos Humanos'!I5,"O número de mulheres das CORPOS E CARREIRAS ESPECIAIS não pode ser diferente do valor registado para este grupo no ano anterior, subtraidas as eventuais saídas e acrescido das eventuais entradas",N6)) -> ... | M6: ver | N6: =IF('Recursos Humanos'!L48<>'Recursos Humanos'!L4,"O número de homens da carreira DOCENTE não pode ser diferente do valor registado para este grupo no ano anterior, subtraidas as eventuais saídas e acrescido das eventuais entradas",IF('Recursos Humanos'!L49<>'Recursos Humanos'!L5,"O número de mulheres da carreira DOCENTE não pode ser diferente do valor registado para este grupo no ano anterior, subtraidas as eventuais saídas e acrescido das eventuais entradas",O6)) -> ... | O6: =IF('Recursos Humanos'!M48<>'Recursos Humanos'!M4,"O número de homens registados nas OUTRAS carreiras não pode ser diferente do valor registado para este grupo no ano anterior, subtraidas as eventuais saídas e acrescido das eventuais entradas",IF('Recursos Humanos'!M49<>'Recursos Humanos'!M5,"O número de mulheres registados nas OUTRAS carreiras não pode ser diferente do valor registado para este grupo no ano anterior, subtraidas as eventuais saídas e acrescido das eventuais entradas","...")) -> ...
E7: =F6 -> ...
B9: Quadro 1.2 Estrutura etária | E9: =IF(E10="...","Preenchido",IF(E10="Por favor preencha todas as células em aberto. Se não existirem ocorrências a registar deverá introduzir o número zero.","Por preencher",IF(AND(OR(E10="Por favor confirme a existência de trabalhadores com menos de 18 anos.",E10="Por favor confirme a existência de trabalhadores com mais de 70 anos."),'Estrut. Etária'!H4="OK"),"Preenchido com reservas","Preenchido com erros!"))) -> Preenchido | G9: =IF('Estrut. Etária'!G4<>0,"Por favor preencha todas as células em aberto. Se não existirem ocorrências a registar deverá introduzir o número zero.",IF('Estrut. Etária'!H4="ERROH","O total de 'HOMENS' deste quadro deverá coincidir com o total apresentado no ponto 1.1. do quadro 1.",IF('Estrut. Etária'!H4="ERROM","O total de 'MULHERES' deste quadro deverá coincidir com o total apresentado no ponto 1.1. do quadro 1.",IF('Estrut. Etária'!J14="ERRO70","Por favor confirme a existência de trabalhadores com mais de 70 anos.","...")))) -> ... | M9: ver
E10: =G9 -> ...
B12: Quadro 1.4 Estrutura de antiguidades | E12: =IF(E13="...","Preenchido",IF(E13="Por favor preencha todas as células em aberto. Se não existirem ocorrências a registar deverá introduzir o número zero.","Por preencher","Preenchido com erros!")) -> Preenchido | G12: =IF('Estrut. Antiguidades'!R4<>0,"Por favor preencha todas as células em aberto. Se não existirem ocorrências a registar deverá introduzir o número zero.",IF('Estrut. Antiguidades'!S4="ERROH","O total de 'HOMENS' deste quadro deverá coincidir com o total apresentado no ponto 1.1. do quadro 1.",IF('Estrut. Antiguidades'!S4="ERROM","O total de 'MULHERES' deste quadro deverá coincidir com o total apresentado no ponto 1.1. do quadro 1.",IF('Estrut. Antiguidades'!S11="ERRO","O total de homens e mulheres indicados neste mapa não coincide com o total de trabalhadores apresentado no mesmo",H12)))) -> ... | H12: =IF('Estrut. Antiguidades'!F15="ERRO","O total de pessoal 'DIRIGENTE' deste quadro deverá coincidir com o total apresentado no quadro 1.",IF('Estrut. Antiguidades'!G15="ERRO","O total de trabalhadores da carreira de 'TÉCNICO SUPERIOR' deste quadro deverá coincidir com o total apresentado no quadro 1.",IF('Estrut. Antiguidades'!H15="ERRO","O total de trabalhadores da carreira de 'ASSISTENTE TÉCNICO' deste quadro deverá coincidir com o total apresentado no quadro 1.",IF('Estrut. Antiguidades'!I15="ERRO","O total de trabalhadores da carreira de 'ASSISTENTE OPERACIONAL' deste quadro deverá coincidir com o total apresentado no quadro 1.",IF('Estrut. Antiguidades'!J15="ERRO","O total de trabalhadores das 'CARREIRAS E CATEGORIAS SUBSISTENTES' deste quadro deverá coincidir com o total apresentado no quadro 1.",I12))))) -> ... | I12: =IF('Estrut. Antiguidades'!K15="ERRO","O total de pessoal 'CARREIRAS E CORPOS ESPECIAIS' deste quadro deverá coincidir com o total apresentado no quadro 1.",IF('Estrut. Antiguidades'!N15="ERRO","O total de trabalhadores da carreira 'DOCENTE' deste quadro deverá coincidir com o total apresentado no quadro 1.",IF('Estrut. Antiguidades'!O15="ERRO","O total de 'OUTROS' deste quadro deverá coincidir com o total apresentado no quadro 1.","..."))) -> ... | M12: ver
E13: =G12 -> ...
B15: Quadro 1.6 Trabalhadores estrangeiros | E15: =IF(E16="...","Preenchido",IF(E16="Por favor preencha todas as células em aberto. Se não existirem ocorrências a registar deverá introduzir o número zero.","Por preencher","Preenchido com reservas")) -> Preenchido | G15: =IF('Trab. Estrangeiros'!G4<>0,"Por favor preencha todas as células em aberto. Se não existirem ocorrências a registar deverá introduzir o número zero.",IF('Trab. Estrangeiros'!H4="ERRO","Por favor confirme a existência de trabalhadores com nacionalidade dos PALOP, Brasil ou Outros países.","...")) -> ... | M15: ver
E16: =G15 -> ...
B18: Quadro 1.7 Trabalhadores deficientes | C18: ver | E18: =IF(E19="...","Preenchido",IF(E19="Por favor preencha todas as células em aberto. Se não existirem ocorrências a registar deverá introduzir o número zero.","Por preencher","Preenchido com erros!")) -> Preenchido | G18: =IF('Trab. Estrangeiros'!G8<>0,"Por favor preencha todas as células em aberto. Se não existirem ocorrências a registar deverá introduzir o número zero.","...") -> ... | M18: ver
E19: =G18 -> ...
B21: Quadro 1.8 Estrutura habilitacional | E21: =IF(E22="...","Preenchido",IF(E22="Por favor preencha todas as células em aberto. Se não existirem ocorrências a registar deverá introduzir o número zero.","Por preencher",IF(AND(E22="Por favor confirme a existência de trabalhadores com menos de 4 anos de escolaridade.",'Estrut. Habilitacional'!#REF!="OK"),"Preenchido com reservas","Preenchido com erros!"))) -> Preenchido | G21: =IF('Estrut. Habilitacional'!H4<>0,"Por favor preencha todas as células em aberto. Se não existirem ocorrências a registar deverá introduzir o número zero.",IF('Estrut. Habilitacional'!I4="ERROH","O total de 'HOMENS' deste quadro deverá coincidir com o total apresentado no ponto 1.1. do quadro 1.",IF('Estrut. Habilitacional'!I4="ERROM","O total de 'MULHERES' deste quadro deverá coincidir com o total apresentado no ponto 1.1. do quadro 1.",IF('Estrut. Habilitacional'!K4="ERROH","O total de 'HOMENS' com habilitação de nível superior deverá ser pelo menos igual ao número de 'HOMENS' pertencentes a carreiras paras as quais seja exigida a posse de habilitação de nível superior",IF('Estrut. Habilitacional'!K4="ERROM","O total de 'MULHERES' com habilitação de nível superior deverá ser pelo menos igual ao número de 'MULHERES' pertencentes a carreiras paras as quais seja exigida a posse de habilitação de nível superior","..."))))) -> ... | M21: ver
E22: =G21 -> ...
B24: Quadro 1.9 Admissões | E24: =IF(E25="...","Preenchido",IF(E25="Por favor preencha todas as células em aberto. Se não existirem ocorrências a registar deverá introduzir o número zero.","Por preencher","Preenchido com erros!")) -> Preenchido | G24: =IF(Admissões!P4<>0,"Por favor preencha todas as células em aberto. Se não existirem ocorrências a registar deverá introduzir o número zero.",IF(Admissões!O21="ERRO","Ao fazer referência a 'OUTROS' no ponto 1.9.4., deverá obrigatoriamente discriminá-las no campo destinado às anotações.",H24)) -> ... | H24: =IF(Admissões!D19="ERROH","O total de 'HOMENS' da carreira 'DIRIGENTE' deste quadro não poderá ser superior ao total apresentado no quadro 1, sem que existam saídas no mesmo ano civil que o justifiquem.",IF(Admissões!D19="ERROM","O total de 'MULHERES' da carreira 'DIRIGENTE' deste quadro não poderá ser superior ao total apresentado no quadro 1, sem que existam saídas no mesmo ano civil que o justifiquem.",IF(Admissões!E19="ERROH","O total de 'HOMENS' da carreira 'TÉCNICO SUPERIOR' deste quadro não poderá ser superior ao total apresentado no quadro 1, sem que existam saídas no mesmo ano civil que o justifiquem.",IF(Admissões!E19="ERROM","O total de 'MULHERES' da carreira 'TÉCNICO SUPERIOR' deste quadro não poderá ser superior ao total apresentado no quadro 1, sem que existam saídas no mesmo ano civil que o justifiquem.",IF(Admissões!F19="ERROH","O total de 'HOMENS' da carreira 'ASSISTENTE TÉCNICO' deste quadro não poderá ser superior ao total apresentado no quadro 1, sem que existam saídas no mesmo ano civil que o justifiquem.",IF(Admissões!F19="ERROM","O total de 'MULHERES' da carreira 'ASSISTENTE TÉCNICO' deste quadro não poderá ser superior ao total apresentado no quadro 1, sem que existam saídas no mesmo ano civil que o justifiquem.",I24)))))) -> ... | I24: =IF(Admissões!G19="ERROH","O total de 'HOMENS' da carreira 'ASSISTENTE OPERACIONAL' deste quadro não poderá ser superior ao total apresentado no quadro 1, sem que existam saídas no mesmo ano civil que o justifiquem.",IF(Admissões!G19="ERROM","O total de 'MULHERES' da carreira 'ASSISTENTE OPERACIONAL' deste quadro não poderá ser superior ao total apresentado no quadro 1, sem que existam saídas no mesmo ano civil que o justifiquem.",IF(Admissões!H19="ERROH","O total de 'HOMENS' das 'CARREIRAS E CATEGORIAS SUBSISTENTES' deste quadro não poderá ser superior ao total apresentado no quadro 1, sem que existam saídas no mesmo ano civil que o justifiquem.",IF(Admissões!H19="ERROM","O total de 'MULHERES' das 'CARREIRAS E CATEGORIAS SUBSISTENTES' deste quadro não poderá ser superior ao total apresentado no quadro 1, sem que existam saídas no mesmo ano civil que o justifiquem.",IF(Admissões!I19="ERROH","O total de 'HOMENS' das 'CARREIRAS E CORPOS ESPECIAIS' deste quadro não poderá ser superior ao total apresentado no quadro 1, sem que existam saídas no mesmo ano civil que o justifiquem.",IF(Admissões!I19="ERROM","O total de 'MULHERES' das 'CARREIRAS E CORPOS ESPECIAIS' deste quadro não poderá ser superior ao total apresentado no quadro 1, sem que existam saídas no mesmo ano civil que o justifiquem.",J24)))))) -> ... | J24: =IF(Admissões!L19="ERROH","O total de 'HOMENS' da 'CARREIRA DOCENTE' deste quadro não poderá ser superior ao total apresentado no quadro 1, sem que existam saídas no mesmo ano civil que o justifiquem.",IF(Admissões!L19="ERROM","O total de 'MULHERES' da 'CARREIRA DOCENTE' deste quadro não poderá ser superior ao total apresentado no quadro 1, sem que existam saídas no mesmo ano civil que o justifiquem.",IF(Admissões!M19="ERROH","O total de 'HOMENS' de 'OUTROS' deste quadro não poderá ser superior ao total apresentado no quadro 1, sem que existam saídas no mesmo ano civil que o justifiquem.",IF(Admissões!M19="ERROM","O total de 'MULHERES' de 'OUTROS' deste quadro não poderá ser superior ao total apresentado no quadro 1, sem que existam saídas no mesmo ano civil que o justifiquem.","...")))) -> ... | M24: ver
E25: =G24 -> ...
B27: Quadro 1.10 Saídas | E27: =IF(E28="...","Preenchido",IF(E28="Por favor preencha todas as células em aberto. Se não existirem ocorrências a registar deverá introduzir o número zero.","Por preencher","Preenchido com erros!")) -> Preenchido | G27: =IF(Saídas!P4<>0,"Por favor preencha todas as células em aberto. Se não existirem ocorrências a registar deverá introduzir o número zero.",IF(Saídas!O21="ERRO","Ao fazer referência a 'OUTROS' no ponto 1.10.4., deverá obrigatoriamente discriminá-las no campo destinado às anotações.","...")) -> ... | M27: ver
E28: =G27 -> ...
B30: Quadro 1.11 Saídas nomeados | E30: =IF(E31="...","Preenchido",IF(E31="Por favor preencha todas as células em aberto. Se não existirem ocorrências a registar deverá introduzir o número zero.","Por preencher","Preenchido com erros!")) -> Preenchido | G30: =IF('Saídas Nomeados'!O4<>0,"Por favor preencha todas as células em aberto. Se não existirem ocorrências a registar deverá introduzir o número zero.",IF('Saídas Nomeados'!C13="ERRO","O total da carreira 'DIRIGENTE' deste quadro deverá ser coincidente com o total do ponto 1.10.1 do quadro 1.10 (Saídas)",IF('Saídas Nomeados'!D13="ERRO","O total da carreira 'TÉCNICO SUPERIOR' deste quadro deverá ser coincidente com o total do ponto 1.10.1 do quadro 1.10 (Saídas)",IF('Saídas Nomeados'!E13="ERRO","O total da carreira 'ASSISTENTE TÉCNICO' deste quadro deverá ser coincidente com o total do ponto 1.10.1 do quadro 1.10 (Saídas)",IF('Saídas Nomeados'!F13="ERRO","O total da carreira 'ASSISTENTE OPERACIONAL' deste quadro deverá ser coincidente com o total do ponto 1.10.1 do quadro 1.10 (Saídas)",H30))))) -> ... | H30: =IF('Saídas Nomeados'!G13="ERRO","O total das 'CARREIRAS E CATEGORIAS SUBSISTENTES ' deste quadro deverá ser coincidente com o total do ponto 1.10.1 do quadro 1.10 (Saídas)",IF('Saídas Nomeados'!H13="ERRO","O total das 'CARREIRAS E CORPOS ESPECIAIS' deste quadro deverá ser coincidente com o total do ponto 1.10.1 do quadro 1.10 (Saídas)",IF('Saídas Nomeados'!K13="ERRO","O total da 'CARREIRA DOCENTE' deste quadro deverá ser coincidente com o total do ponto 1.10.1 do quadro 1.10 (Saídas)",IF('Saídas Nomeados'!L13="ERRO","O total de 'OUTROS' deste quadro deverá ser coincidente com o total do ponto 1.10.1 do quadro 1.10 (Saídas)",IF('Saídas Nomeados'!N15="ERRO","Ao fazer referência a 'OUTROS' no ponto 1.11.8., deverá obrigatoriamente discriminá-las no campo destinado às anotações.","..."))))) -> ... | M30: ver
E31: =G30 -> ...
B33: Quadro 1.12 Saídas contratos | E33: =IF(E34="...","Preenchido",IF(E34="Por favor preencha todas as células em aberto. Se não existirem ocorrências a registar deverá introduzir o número zero.","Por preencher","Preenchido com erros!")) -> Preenchido | G33: =IF('Saídas Contratados'!O4<>0,"Por favor preencha todas as células em aberto. Se não existirem ocorrências a registar deverá introduzir o número zero.",IF('Saídas Contratados'!C13="ERRO","O total da carreira 'DIRIGENTE' deste quadro deverá ser coincidente com o somatório dos pontos 1.10.2 e 1.10.3 do quadro 1.10 (Saídas)",IF('Saídas Contratados'!D13="ERRO","O total da carreira 'TÉCNICO SUPERIOR' deste quadro deverá ser coincidente com o somatório dos pontos 1.10.2 e 1.10.3 do quadro 1.10 (Saídas)",IF('Saídas Contratados'!E13="ERRO","O total da carreira 'ASSISTENTE TÉCNICO' deste quadro deverá ser coincidente com o somatório dos pontos 1.10.2 e 1.10.3 do quadro 1.10 (Saídas)",IF('Saídas Contratados'!F13="ERRO","O total da carreira 'ASSISTENTE OPERACIONAL' deste quadro deverá ser coincidente com o somatório dos pontos 1.10.2 e 1.10.3 do quadro 1.10 (Saídas)",H33))))) -> ... | H33: =IF('Saídas Contratados'!G13="ERRO","O total das 'CARREIRAS E CATEGORIAS SUBSISTENTES ' deste quadro deverá ser coincidente com o somatório dos pontos 1.10.2 e 1.10.3 do quadro 1.10 (Saídas)",IF('Saídas Contratados'!H13="ERRO","O total das 'CARREIRAS E CORPOS ESPECIAIS' deste quadro deverá ser coincidente com o somatório dos pontos 1.10.2 e 1.10.3 do quadro 1.10 (Saídas)",IF('Saídas Contratados'!K13="ERRO","O total da 'CARREIRA DOCENTE' deste quadro deverá ser coincidente com o somatório dos pontos 1.10.2 e 1.10.3 do quadro 1.10 (Saídas)",IF('Saídas Contratados'!L13="ERRO","O total de 'OUTROS' deste quadro deverá ser coincidente com o somatório dos pontos 1.10.2 e 1.10.3 do quadro 1.10 (Saídas)",IF('Saídas Contratados'!N15="ERRO","Ao fazer referência a 'OUTROS' no ponto 1.12.5., deverá obrigatoriamente discriminá-las no campo destinado às anotações.","..."))))) -> ... | M33: ver
E34: =G33 -> ...
B36: Quadro 1.13 Postos de trabalho não ocupados | E36: =IF(E37="...","Preenchido",IF(E37="Por favor preencha todas as células em aberto. Se não existirem ocorrências a registar deverá introduzir o número zero.","Por preencher","Preenchido com erros!")) -> Preenchido | G36: =IF('Postos de Trabalho'!F4<>0,"Por favor preencha todas as células em aberto. Se não existirem ocorrências a registar deverá introduzir o número zero.",IF('Postos de Trabalho'!E10="ERRO","Ao fazer referência a 'OUTRAS' no ponto 1.13.4., deverá obrigatoriamente discriminá-las no campo destinado às anotações.","...")) -> ... | M36: ver
E37: =G36 -> ...
B39: Quadro 1.14 Alterações remuneratórias / promoções | E39: =IF(E40="...","Preenchido",IF(E40="Por favor preencha todas as células em aberto. Se não existirem ocorrências a registar deverá introduzir o número zero.","Por preencher",IF(E40="Por favor confirme a existência de promoções em carreiras não subsistentes.","Preenchido com reservas","Preenchido com erros!"))) -> Preenchido | G39: =IF('Alter. Posic. e Promoções'!P4<>0,"Por favor preencha todas as células em aberto. Se não existirem ocorrências a registar deverá introduzir o número zero.",IF('Alter. Posic. e Promoções'!Q4="ERRO","Por favor confirme a existência de promoções em carreiras não subsistentes.","...")) -> ... | M39: ver
E40: =G39 -> ...
B42: Quadro 1.15 Modalidades de horário | E42: =IF(E43="...","Preenchido",IF(E43="Por favor preencha todas as células em aberto. Se não existirem ocorrências a registar deverá introduzir o número zero.","Por preencher",IF(E43="Por favor confirme a existência de elementos da carreira 'DIRIGENTE' sem isenção de horário.","Preenchido com reservas","Preenchido com erros!"))) -> Preenchido | G42: =IF('Modalidade de Horário'!O4<>0,"Por favor preencha todas as células em aberto. Se não existirem ocorrências a registar deverá introduzir o número zero.",H42) -> ... | H42: =IF('Modalidade de Horário'!C18="ERRO","O total de pessoal 'DIRIGENTE' deste quadro deverá coincidir com o total apresentado no quadro 1.",IF('Modalidade de Horário'!D18="ERRO","O total de trabalhadores da carreira de 'TÉCNICO SUPERIOR' deste quadro deverá coincidir com o total apresentado no quadro 1.",IF('Modalidade de Horário'!E18="ERRO","O total de trabalhadores da carreira de 'ASSISTENTE TÉCNICO' deste quadro deverá coincidir com o total apresentado no quadro 1.",IF('Modalidade de Horário'!F18="ERRO","O total de trabalhadores da carreira de 'ASSISTENTE OPERACIONAL' deste quadro deverá coincidir com o total apresentado no quadro 1.",IF('Modalidade de Horário'!G18="ERRO","O total de trabalhadores das 'CARREIRAS E CATEGORIAS SUBSISTENTES' deste quadro deverá coincidir com o total apresentado no quadro 1.",I42))))) -> ... | I42: =IF('Modalidade de Horário'!H18="ERRO","O total de pessoal 'CARREIRAS E CORPOS ESPECIAIS' deste quadro deverá coincidir com o total apresentado no quadro 1.",IF('Modalidade de Horário'!K18="ERRO","O total de trabalhadores da carreira 'DOCENTE' deste quadro deverá coincidir com o total apresentado no quadro 1.",IF('Modalidade de Horário'!L18="ERRO","O total de 'OUTROS' deste quadro deverá coincidir com o total apresentado no quadro 1.",IF('Modalidade de Horário'!P4="ERROISE","Por favor confirme a existência de elementos da carreira 'DIRIGENTE' sem isenção de horário.","...")))) -> ... | M42: ver
E43: =G42 -> ...
B45: Quadro 1.16 Trabalho extraordinário | E45: =IF(E46="...","Preenchido",IF(E46="Por favor preencha todas as células em aberto. Se não existirem ocorrências a registar deverá introduzir o número zero.","Por preencher","Preenchido com erros!")) -> Preenchido | G45: =IF('Trabalho Extraord.'!F4<>0,"Por favor preencha todas as células em aberto. Se não existirem ocorrências a registar deverá introduzir o número zero.","...") -> ... | M45: ver
E46: =G45 -> ...
B48: Quadro 1.17 Ausências ao trabalho | E48: =IF(E49="...","Preenchido",IF(E49="Por favor preencha todas as células em aberto. Se não existirem ocorrências a registar deverá introduzir o número zero.","Por preencher","Preenchido com erros!")) -> Preenchido | G48: =IF('Ausências Trabalho'!P4<>0,"Por favor preencha todas as células em aberto. Se não existirem ocorrências a registar deverá introduzir o número zero.",IF('Ausências Trabalho'!P25="ERRO","Por favor confirme se os trabalhadores indicados no ponto 1.15.6 (Modalidades de horário) nunca tiveram ausências ao abrigo deste regime",IF('Ausências Trabalho'!O48="ERRO","Ao fazer referência a 'OUTRAS' no ponto 1.17.13., deverá obrigatoriamente discriminá-las no campo destinado às anotações.",H48))) -> ... | H48: =IF('Ausências Trabalho'!D46="ERROH","Não poderá indicar ausências de 'HOMENS' da carreira 'DIRIGENTE' neste quadro quando o total do quadro 1. é '0'.",IF('Ausências Trabalho'!D46="ERROM","Não poderá indicar ausências de 'MULHERES' da carreira 'DIRIGENTE' neste quadro quando o total do quadro 1. é '0'.",IF('Ausências Trabalho'!E46="ERROH","Não poderá indicar ausências de 'HOMENS' da carreira 'TÉCNICO SUPERIOR' neste quadro quando o total do quadro 1. é '0'.",IF('Ausências Trabalho'!E46="ERROM","Não poderá indicar ausências de 'MULHERES' da carreira 'TÉCNICO SUPERIOR' neste quadro quando o total do quadro 1. é '0'.",IF('Ausências Trabalho'!F46="ERROH","Não poderá indicar ausências de 'HOMENS' da carreira 'ASSISTENTE TÉCNICO' neste quadro quando o total do quadro 1. é '0'.",IF('Ausências Trabalho'!F46="ERROM","Não poderá indicar ausências de 'MULHERES' da carreira 'ASSISTENTE TÉCNICO' neste quadro quando o total do quadro 1. é '0'.",I48)))))) -> ... | I48: =IF('Ausências Trabalho'!G46="ERROH","Não poderá indicar ausências de 'HOMENS' da carreira 'ASSISTENTE OPERACIONAL'neste quadro quando o total do quadro 1. é '0'.",IF('Ausências Trabalho'!G46="ERROM","Não poderá indicar ausências de 'MULHERES' da carreira 'ASSISTENTE OPERACIONAL'neste quadro quando o total do quadro 1. é '0'.",IF('Ausências Trabalho'!H46="ERROH","Não poderá indicar ausências de 'HOMENS' das 'CARREIRAS E CATEGORIAS SUBSISTENTES' neste quadro quando o total do quadro 1. é '0'.",IF('Ausências Trabalho'!H46="ERROM","Não poderá indicar ausências de 'MULHERES' das 'CARREIRAS E CATEGORIAS SUBSISTENTES' neste quadro quando o total do quadro 1. é '0'.",J48)))) -> ... | J48: =IF('Ausências Trabalho'!I46="ERROH","Não poderá indicar ausências de 'HOMENS' das 'CARREIRAS E CORPOS ESPECIAIS' neste quadro quando o total do quadro 1. é '0'.",IF('Ausências Trabalho'!I46="ERROM","Não poderá indicar ausências de 'MULHERES' das 'CARREIRAS E CORPOS ESPECIAIS' neste quadro quando o total do quadro 1. é '0'.",IF('Ausências Trabalho'!L46="ERROH","Não poderá indicar ausências de 'HOMENS' da 'CARREIRA DOCENTE' neste quadro quando o total do quadro 1. é '0'.",IF('Ausências Trabalho'!L46="ERROM","Não poderá indicar ausências de 'MULHERES' da 'CARREIRA DOCENTE' neste quadro quando o total do quadro 1. é '0'.",IF('Ausências Trabalho'!M46="ERROH","Não poderá indicar ausências de 'HOMENS' de 'OUTROS'neste quadro quando o total do quadro 1. é '0'.",IF('Ausências Trabalho'!M46="ERROM","Não poderá indicar ausências de 'MULHERES' de 'OUTROS'neste quadro quando o total do quadro 1. é '0'.","...")))))) -> ... | M48: ver
E49: =G48 -> ...
B51: Quadro 1.18 Horas não trabalhadas | E51: =IF(E52="...","Preenchido",IF(E52="Por favor preencha todas as células em aberto. Se não existirem ocorrências a registar deverá introduzir o número zero.","Por preencher","Preenchido com erros!")) -> Preenchido | G51: =IF('Horas Não Trabalhadas'!P4<>0,"Por favor preencha todas as células em aberto. Se não existirem ocorrências a registar deverá introduzir o número zero.","...") -> ... | M51: ver
E52: =G51 -> ...
B54: Quadro 2. Encargos com pessoal | E54: =IF(E55="...","Preenchido",IF(E55="Por favor preencha todas as células em aberto. Se não existirem ocorrências a registar deverá introduzir o número zero.","Por preencher","Preenchido com erros!")) -> Preenchido | G54: =IF('Encargos com Pessoal'!F4<>0,"Por favor preencha todas as células em aberto. Se não existirem ocorrências a registar deverá introduzir o número zero.",IF('Encargos com Pessoal'!F5="ERRO","Ao indicar horas de trabalho extraodinário no ponto 1.16.1 deverá registar os correspondentes encargos.",IF('Encargos com Pessoal'!F6="ERRO","Ao indicar horas de trabalho nocturno no ponto 1.16.4 deverá registar os correspondentes encargos.",IF('Encargos com Pessoal'!F7="ERRO","Ao indicar horas de trabalho em dia de descanso semanal, complementar e feriados no ponto 1.16.5, 1.16.6 ou 1.16.7, deverá registar os correspondentes encargos.",IF('Encargos com Pessoal'!E26="ERRO","Ao fazer referência a 'OUTROS' no ponto 2.16., deverá obrigatoriamente discriminá-los no campo destinado às anotações.","..."))))) -> ... | M54: ver
E55: =G54 -> ...
B57: Quadro 2.17.1 Leque salarial líquido | E57: =IF(E58="...","Preenchido",IF(E58="Por favor preencha todas as células em aberto. Se não existirem ocorrências a registar deverá introduzir o número zero.","Por preencher","Preenchido com erros!")) -> Preenchido | G57: =IF('Encargos com Pessoal'!F22<>0,"Por favor preencha todas as células em aberto. Se não existirem ocorrências a registar deverá introduzir o número zero.",IF('Encargos com Pessoal'!F21="ERRO","Por favor verifique os valores introduzidos nos pontos 2.17.1.1 e 2.17.1.2, uma vez que o leque salarial não deverá ser igual ou inferior a '1';","...")) -> ... | M57: ver
E58: =G57 -> ...
B60: Quadro 3.1 Acidentes em serviço | E60: =IF(E61="...","Preenchido",IF(E61="Por favor preencha todas as células em aberto. Se não existirem ocorrências a registar deverá introduzir o número zero.","Por preencher","Preenchido com erros!")) -> Preenchido | G60: =IF('Acidentes em Serviço'!L6<>0,"Por favor preencha todas as células em aberto. Se não existirem ocorrências a registar deverá introduzir o número zero.",IF('Acidentes em Serviço'!M6="ERROLOCAL1","Ao regista 'Número de acidentes com baixa' no local de trabalho deverá registar o 'Número de dias perdidos com baixa' na coluna 'Menos de 60 dias' e vice-versa.",IF('Acidentes em Serviço'!M6="ERROTRAJ1","Ao regista 'Número de acidentes com baixa' In Itinere deverá registar o 'Número de dias perdidos com baixa' na coluna 'Menos de 60 dias' e vice-versa.",IF('Acidentes em Serviço'!M6="ERROLOCAL2","Ao regista 'Número de acidentes com baixa' no local de trabalho deverá registar o 'Número de dias perdidos com baixa' na coluna 'Mais de 60 dias' e vice-versa.",IF('Acidentes em Serviço'!M6="ERROTRAJ2","Ao regista 'Número de acidentes com baixa' In Itinere deverá registar o 'Número de dias perdidos com baixa' na coluna 'Mais de 60 dias' e vice-versa.",H60))))) -> ... | H60: =IF('Acidentes em Serviço'!N6="ERROMENOS","O número de dias indicados na coluna 'Menos de 60 dias de baixa' não deve ser superior ao número de casos multiplicado por 60.",IF('Acidentes em Serviço'!N6="ERROMAIS","O número de dias indicados na coluna '60 dias ou mais de baixa' não deve ser inferior ao número de casos multiplicado por 60.","...")) -> ... | M60: ver
E61: =G60 -> ...
B63: Quadro 3.2 Doenças profissionais | E63: =IF(E64="...","Preenchido",IF(E64="Por favor preencha todas as células em aberto. Se não existirem ocorrências a registar deverá introduzir o número zero.","Por preencher","Preenchido com erros!")) -> Preenchido | G63: =IF('Doenças Profissionais'!F4<>0,"Por favor preencha todas as células em aberto. Se não existirem ocorrências a registar deverá introduzir o número zero.","...") -> ... | M63: ver
E64: =G63 -> ...
B66: Quadro 3.3 Actividades de medicina do trabalho | E66: =IF(E67="...","Preenchido",IF(E67="Por favor preencha todas as células em aberto. Se não existirem ocorrências a registar deverá introduzir o número zero.","Por preencher","Preenchido com erros!")) -> Preenchido | G66: =IF('Higiene Segurança Trab.'!E5<>0,"Por favor preencha todas as células em aberto. Se não existirem ocorrências a registar deverá introduzir o número zero.","...") -> ... | M66: ver
E67: =G66 -> ...
B69: Quadro 3.4 Comissões de higiene e segurança | E69: =IF(E70="...","Preenchido",IF(E70="Por favor preencha todas as células em aberto. Se não existirem ocorrências a registar deverá introduzir o número zero.","Por preencher","Preenchido com erros!")) -> Preenchido | G69: =IF('Higiene Segurança Trab.'!E13<>0,"Por favor preencha todas as células em aberto. Se não existirem ocorrências a registar deverá introduzir o número zero.","...") -> ... | M69: ver
E70: =G69 -> ...
B72: Quadro 3.5 Número de pessoas recolocadas | E72: =IF(E73="...","Preenchido",IF(E73="Por favor preencha todas as células em aberto. Se não existirem ocorrências a registar deverá introduzir o número zero.","Por preencher","Preenchido com erros!")) -> Preenchido | G72: =IF('Higiene Segurança Trab.'!E16<>0,"Por favor preencha todas as células em aberto. Se não existirem ocorrências a registar deverá introduzir o número zero.","...") -> ... | M72: ver
E73: =G72 -> ...
B75: Quadro 3.6 Ações de formação em matéria de segurança | E75: =IF(E76="...","Preenchido",IF(E76="Por favor preencha todas as células em aberto. Se não existirem ocorrências a registar deverá introduzir o número zero.","Por preencher","Preenchido com erros!")) -> Preenchido | G75: =IF('Higiene Segurança Trab.'!E19<>0,"Por favor preencha todas as células em aberto. Se não existirem ocorrências a registar deverá introduzir o número zero.","...") -> ... | M75: ver
E76: =G75 -> ...
B78: Quadro 3.7 Custos com prevenção de acidentes | E78: =IF(E79="...","Preenchido",IF(E79="Por favor preencha todas as células em aberto. Se não existirem ocorrências a registar deverá introduzir o número zero.","Por preencher",IF(E79="Por favor verifique se as acções de formação e sensibilização em matéria de segurança indicadas no ponto 3.6.1 não tiveram custos.","Preenchido com reservas",IF(E79="Ao fazer referência a 'OUTROS CUSTOS' no ponto 3.7.4, deverá obrigatoriamente discriminá-los no campo destinado às anotações.","Preenchido com erros!")))) -> Preenchido | G78: =IF('Custos Prevenção Acidentes'!E4<>0,"Por favor preencha todas as células em aberto. Se não existirem ocorrências a registar deverá introduzir o número zero.",IF('Custos Prevenção Acidentes'!D10="ERRO","Ao fazer referência a 'OUTROS CUSTOS' no ponto 3.7.4, deverá obrigatoriamente discriminá-los no campo destinado às anotações.",IF('Custos Prevenção Acidentes'!F4="ALERTA","Por favor verifique se as acções de formação e sensibilização em matéria de segurança indicadas no ponto 3.6.1 não tiveram custos.","..."))) -> ... | M78: ver
E79: =G78 -> ...
B81: Quadro 4. Formação profissional | E81: =IF(E82="...","Preenchido",IF(E82="Por favor preencha todas as células em aberto. Se não existirem ocorrências a registar deverá introduzir o número zero.","Por preencher","Preenchido com erros!")) -> Preenchido | G81: =IF('Formação Prof Niveis Custos'!O6<>0,"Por favor preencha todas as células em aberto. Se não existirem ocorrências a registar deverá introduzir o número zero.",IF('Formação Prof Niveis Custos'!P6="ERROINT2","Ao indicar acções de formação interna no ponto 4.1.1, deverá indicar indicar o número de participantes no quadro 4.2.1.",IF('Formação Prof Niveis Custos'!P6="ERROEXT2","Ao indicar acções de formação externa no ponto 4.1.2, deverá indicar indicar o número de participantes no quadro 4.2.2.",IF('Formação Prof Niveis Custos'!P6="ERRO","O número de acções indicadas no ponto 4.1 não deverá ser superior ao número de participantes indicados no ponto 4.2.","...")))) -> ... | M81: ver
E82: =G81 -> ...
B84: Quadro 4.2 e 4.3 Número total de participantes e horas | E84: =IF(E85="...","Preenchido",IF(E85="Por favor preencha todas as células em aberto. Se não existirem ocorrências a registar deverá introduzir o número zero.","Por preencher","Preenchido com erros!")) -> Preenchido | G84: =IF('Formação Prof Niveis Custos'!O11<>0,"Por favor preencha todas as células em aberto. Se não existirem ocorrências a registar deverá introduzir o número zero.",H84) -> ... | H84: =IF('Formação Prof Niveis Custos'!C20="ERROINT","Ao indicar pessoal 'DIRIGENTE' participantes em acções de formação interna, deverá indicar o n.º de horas correspondente no ponto 4.3.1.",IF('Formação Prof Niveis Custos'!D20="ERROINT","Ao indicar trabalhadores da carreira de 'TÉCNICO SUPERIOR' participantes em acções de formação interna, deverá indicar o n.º de horas correspondente no ponto 4.3.1.",IF('Formação Prof Niveis Custos'!E20="ERROINT","Ao indicar trabalhadores da carreira de 'ASSISTENTE TÉCNICO' participantes em acções de formação interna, deverá indicar o n.º de horas correspondente no ponto 4.3.1.",IF('Formação Prof Niveis Custos'!F20="ERROINT","Ao indicar trabalhadores da carreira de 'ASSISTENTE OPERACIONAL' participantes em acções de formação interna, deverá indicar o n.º de horas correspondente no ponto 4.3.1.",I84)))) -> ... | I84: =IF('Formação Prof Niveis Custos'!G20="ERROINT","Ao indicar trabalhadores das 'CARREIRAS E CATEGORIAS SUBSISTENTES' como participantes em acções de formação interna, deverá indicar o n.º de horas correspondente no ponto 4.3.1.",IF('Formação Prof Niveis Custos'!H20="ERROINT","Ao indicar trabalhadores das 'CARREIRAS E CORPOS ESPECIAIS' como participantes em acções de formação interna, deverá indicar o n.º de horas correspondente no ponto 4.3.1.",IF('Formação Prof Niveis Custos'!K20="ERROINT","Ao indicar trabalhadores da 'CARREIRA DOCENTE' como participantes em acções de formação interna, deverá indicar o n.º de horas correspondente no ponto 4.3.1.",IF('Formação Prof Niveis Custos'!L20="ERROINT","Ao indicar trabalhadores de 'OUTROS' como participantes em acções de formação interna, deverá indicar o n.º de horas correspondente no ponto 4.3.1.",J84)))) -> ... | J84: =IF('Formação Prof Niveis Custos'!C20="ERROEXT","Ao indicar pessoal 'DIRIGENTE' participantes em acções de formação externa, deverá indicar o n.º de horas correspondente no ponto 4.3.2.",IF('Formação Prof Niveis Custos'!D20="ERROEXT","Ao indicar trabalhadores da carreira de 'TÉCNICO SUPERIOR' participantes em acções de formação externa deverá indicar o n.º de horas correspondente no ponto 4.3.2.",IF('Formação Prof Niveis Custos'!E20="ERROEXT","Ao indicar trabalhadores da carreira de 'ASSISTENTE TÉCNICO' participantes em acções de formação interna, deverá indicar o n.º de horas correspondente no ponto 4.3.2.",IF('Formação Prof Niveis Custos'!F20="ERROEXT","Ao indicar trabalhadores da carreira de 'ASSISTENTE OPERACIONAL' participantes em acções de formação interna, deverá indicar o n.º de horas correspondente no ponto 4.3.2.",K84)))) -> ... | K84: =IF('Formação Prof Niveis Custos'!G20="ERROEXT","Ao indicar trabalhadores das 'CARREIRAS E CATEGORIAS SUBSISTENTES' como participantes em acções de formação externa, deverá indicar o n.º de horas correspondente no ponto 4.3.2.",IF('Formação Prof Niveis Custos'!H20="ERROEXT","Ao indicar trabalhadores das 'CARREIRAS E CORPOS ESPECIAIS' como participantes em acções de formação externa, deverá indicar o n.º de horas correspondente no ponto 4.3.2.",IF('Formação Prof Niveis Custos'!K20="ERROEXT","Ao indicar trabalhadores da 'CARREIRA DOCENTE' como participantes em acções de formação externa, deverá indicar o n.º de horas correspondente no ponto 4.3.2.",IF('Formação Prof Niveis Custos'!L20="ERROEXT","Ao indicar trabalhadores de 'OUTROS' como participantes em acções de formação externa, deverá indicar o n.º de horas correspondente no ponto 4.3.2.","...")))) -> ... | M84: ver
E85: =G84 -> ...
B87: Quadro 4.4 Custos totais de formação | E87: =IF(E88="...","Preenchido",IF(E88="Por favor preencha todas as células em aberto. Se não existirem ocorrências a registar deverá introduzir o número zero.","Por preencher",IF(E88="Por favor confirme se as acções de formação interna não implicaram custos.","Preenchido com reservas",IF(E88="Por favor confirme se as acções de formação externa não implicaram custos.","Preenchido com reservas","Preenchido com erros!")))) -> Preenchido com reservas | G87: =IF('Formação Prof Niveis Custos'!O18<>0,"Por favor preencha todas as células em aberto. Se não existirem ocorrências a registar deverá introduzir o número zero.",IF('Formação Prof Niveis Custos'!P17="ERROCUSINT","Por favor confirme se as acções de formação interna não implicaram custos.",IF('Formação Prof Niveis Custos'!P17="ERROCUSEXT","Por favor confirme se as acções de formação externa não implicaram custos.","..."))) -> Por favor confirme se as acções de formação interna não implicaram custos. | M87: ver
E88: =G87 -> Por favor confirme se as acções de formação interna não implicaram custos.
B90: Quadro 5. Prestações sociais | E90: =IF(E91="...","Preenchido",IF(E91="Por favor preencha todas as células em aberto. Se não existirem ocorrências a registar deverá introduzir o número zero.","Por preencher","Preenchido com reservas!")) -> Preenchido | G90: =IF('Prestações Sociais Acção Social'!E4<>0,"Por favor preencha todas as células em aberto. Se não existirem ocorrências a registar deverá introduzir o número zero.",IF('Prestações Sociais Acção Social'!F4="ALERTA","Caso tenha assinalado ausências ao trabalho por motivo de maternidade/paternidade de trabalhadores do regime de proteção social convergente, deverá identificar na linha 5.8, o valor total do subsídio pago no ambito da protecção social na parentalidade .","...")) -> ... | M90: ver
E91: =G90 -> ...
B93: Quadro 5.9 Prestações acção social complementar | E93: =IF(E94="...","Preenchido",IF(E94="Por favor preencha todas as células em aberto. Se não existirem ocorrências a registar deverá introduzir o número zero.","Por preencher","Preenchido com erros!")) -> Preenchido | G93: =IF('Prestações Sociais Acção Social'!E14<>0,"Por favor preencha todas as células em aberto. Se não existirem ocorrências a registar deverá introduzir o número zero.",IF('Prestações Sociais Acção Social'!D23="ERRO","Ao fazer referência a 'OUTRAS' nos pontos 5.8 e 5.9.7, deverá obrigatoriamente discriminá-las no campo destinado às anotações.","...")) -> ... | M93: ver
E94: =G93 -> ...
B96: Quadro 6.1 Organização e actividade sindical | E96: =IF(E97="...","Preenchido",IF(E97="Por favor preencha todas as células em aberto. Se não existirem ocorrências a registar deverá introduzir o número zero.","Por preencher","Preenchido com erros!")) -> Preenchido | G96: =IF('Relaç Profis Comissões Discipli'!D5<>0,"Por favor preencha todas as células em aberto. Se não existirem ocorrências a registar deverá introduzir o número zero.",IF('Relaç Profis Comissões Discipli'!E5="ERRO","Por favor verifique a existência de trabalhadores sindicalizados, uma vez que referiu 'Horas de actividade sindical' no ponto 1.18.1.","...")) -> ... | M96: ver
E97: =G96 -> ...
B99: Quadro 6.2 Comissões de trabalhadores | E99: =IF(E100="...","Preenchido",IF(E100="Por favor preencha todas as células em aberto. Se não existirem ocorrências a registar deverá introduzir o número zero.","Por preencher","Preenchido com erros!")) -> Preenchido | G99: =IF('Relaç Profis Comissões Discipli'!E8<>0,"Por favor preencha todas as células em aberto. Se não existirem ocorrências a registar deverá introduzir o número zero.","...") -> ... | M99: ver
E100: =G99 -> ...
B102: Quadro 6.3 Disciplina | E102: =IF(E103="...","Preenchido",IF(E103="Por favor preencha todas as células em aberto. Se não existirem ocorrências a registar deverá introduzir o número zero.","Por preencher","Preenchido com erros!")) -> Preenchido | G102: =IF('Relaç Profis Comissões Discipli'!E12<>0,"Por favor preencha todas as células em aberto. Se não existirem ocorrências a registar deverá introduzir o número zero.",IF('Relaç Profis Comissões Discipli'!F12="ERRO","O n.º de processos a transitar para o ano seguinte não pode ser superior à soma dos transitados do ano anterior e instaurados no próprio ano.","...")) -> ... | M102: ver
E103: =G102 -> ...
B105: Quadro 6.3.4 Processos decididos | E105: =IF(E106="...","Preenchido",IF(E106="Por favor preencha todas as células em aberto. Se não existirem ocorrências a registar deverá introduzir o número zero.","Por preencher","Preenchido com erros!")) -> Preenchido | G105: =IF('Relaç Profis Comissões Discipli'!E17<>0,"Por favor preencha todas as células em aberto. Se não existirem ocorrências a registar deverá introduzir o número zero.",IF('Relaç Profis Comissões Discipli'!F17="ERRO","O número de processos decididos deverá ser igual à soma dos pontos 6.3.1 e 6.3.2, subtraindo o ponto 6.3.3.","...")) -> ... | M105: ver
E106: =G105 -> ...

Sheet Recursos Humanos
A1: =IF(Identificação!C17="","",Identificação!C17) -> ESCOLA BÁSICA E SECUNDÁRIA COM PRÉ-ESCOLAR E CRECHE DO PORTO MONIZ
A2: =IF(Validação!E6="Preenchido","","Mensagem: " & Validação!E6 & "! " & Validação!E7) -> 
A3: 1. | B3: Recursos Humanos (1) | D3: Dirigente (8) | E3: Técnico Superior | F3: Assistente Técnico (9) | G3: Assistente Operacional (10) | H3: Carreiras e Categorias subsistentes (11) | I3: Carreiras e Corpos especiais (12) | J3: Carreira Médica | K3: Carreira de Enfermagem | L3: Carreira Docente | M3: Outros | N3: Total
A4: 1.1 | B4: Total efectivos | C4: H | D4: =SUM(D19,D7,D16,D31,D22,D25,D28) -> 1 | E4: =SUM(E19,E7,E16,E31,E22,E25,E28) -> 0 | F4: 0 | G4: 4 | H4: 0 | I4: 2 | J4: 0 | K4: 0 | L4: 15 | M4: 0 | N4: =SUM(D4:M4) -> 22
C5: M | D5: =SUM(D20,D8,D17,D32,D23,D26,D29) -> 2 | E5: =SUM(E20,E8,E17,E32,E23,E26,E29) -> 2 | F5: 10 | G5: 21 | H5: 0 | I5: 5 | J5: 0 | K5: 0 | L5: 41 | M5: 0 | N5: 81
C6: T | D6: =SUM(D4:D5) -> 3 | E6: 2 | F6: 10 | G6: 25 | H6: 0 | I6: 7 | J6: 0 | K6: 0 | L6: 56 | M6: 0 | N6: 103
A7: 1.1.1 | B7: Contrato de Trabalho em Funções Públicas (CTFP) (al. a) do n.º 3 do artigo 6.º da LTFP) (2) | C7: H | D7: =D10+D13 -> 1 | E7: =E10+E13 -> 0 | F7: 0 | G7: 4 | H7: 0 | I7: 2 | J7: 0 | K7: 0 | L7: =L10+L13 -> 15 | M7: 0 | N7: =SUM(D7:M7) -> 22 | O7: =IF(OR(D7="",E7="",F7="",G7="",H7="",I7="",J7="",K7="",L7="",M7="",D8="",E8="",F8="",G8="",H8="",I8="",J8="",K8="",L8="",M8=""),1,0) -> 0 | P7: =SUM(O16+O10+O13+O31+O19+O22+O25+O28) -> 0
C8: M | D8: =D11+D14 -> 2 | E8: 2 | F8: 10 | G8: 21 | H8: 0 | I8: 5 | J8: 0 | K8: 0 | L8: =L11+L14 -> 40 | M8: 0 | N8: 80
C9: T | D9: =SUM(D8,D7) -> 3 | E9: 2 | F9: 10 | G9: 25 | H9: 0 | I9: 7 | J9: 0 | K9: 0 | L9: 55 | M9: 0 | N9: 102
A10: 1.1.1.1 | B10: CTFP: Contrato por tempo indeterminado | C10: H | D10: 1 | E10: 0 | F10: 0 | G10: 4 | H10: 0 | I10: 2 | J10: 0 | K10: 0 | L10: 6 | M10: 0 | N10: 13 | O10: =IF(OR(D10="",E10="",F10="",G10="",H10="",I10="",J10="",K10="",L10="",M10="",D11="",E11="",F11="",G11="",H11="",I11="",J11="",K11="",L11="",M11=""),1,0) -> 0
C11: M | D11: 2 | E11: 2 | F11: 10 | G11: 21 | H11: 0 | I11: 5 | J11: 0 | K11: 0 | L11: 28 | M11: 0 | N11: 68
C12: T | D12: =SUM(D11,D10) -> 3 | E12: 2 | F12: 10 | G12: 25 | H12: 0 | I12: 7 | J12: 0 | K12: 0 | L12: 34 | M12: 0 | N12: 81
A13: 1.1.1.2 | B13: CTFP: Contrato a termo resolutivo, certo ou incerto | C13: H | D13: 0 | E13: 0 | F13: 0 | G13: 0 | H13: 0 | I13: 0 | J13: 0 | K13: 0 | L13: 9 | M13: 0 | N13: 9 | O13: =IF(OR(D13="",E13="",F13="",G13="",H13="",I13="",J13="",K13="",L13="",M13="",D14="",E14="",F14="",G14="",H14="",I14="",J14="",K14="",L14="",M14=""),1,0) -> 0
C14: M | D14: 0 | E14: 0 | F14: 0 | G14: 0 | H14: 0 | I14: 0 | J14: 0 | K14: 0 | L14: 12 | M14: 0 | N14: 12
C15: T | D15: =SUM(D14,D13) -> 0 | E15: 0 | F15: 0 | G15: 0 | H15: 0 | I15: 0 | J15: 0 | K15: 0 | L15: 21 | M15: 0 | N15: 21
A16: 1.1.2 | B16: Nomeação (al. b) do n.º 3 do artigo 6.º da LTFP) (3) | C16: H | D16: 0 | E16: 0 | F16: 0 | G16: 0 | H16: 0 | I16: 0 | J16: 0 | K16: 0 | L16: 0 | M16: 0 | N16: =SUM(D16:M16) -> 0 | O16: =IF(OR(D16="",E16="",F16="",G16="",H16="",I16="",J16="",K16="",L16="",M16="",D17="",E17="",F17="",G17="",H17="",I17="",J17="",K17="",L17="",M17=""),1,0) -> 0
C17: M | D17: 0 | E17: 0 | F17: 0 | G17: 0 | H17: 0 | I17: 0 | J17: 0 | K17: 0 | L17: 0 | M17: 0 | N17: =SUM(D17:M17) -> 0
C18: T | D18: =SUM(D17,D16) -> 0 | E18: 0 | F18: 0 | G18: 0 | H18: 0 | I18: 0 | J18: 0 | K18: 0 | L18: 0 | M18: 0 | N18: =SUM(D18:M18) -> 0
A19: 1.1.3 | B19: Contrato de Trabalho (Código do Trabalho) (4) | C19: H | D19: 0 | E19: 0 | F19: 0 | G19: 0 | H19: 0 | I19: 0 | J19: 0 | K19: 0 | L19: 0 | M19: 0 | N19: =SUM(D19:M19) -> 0 | O19: =IF(OR(D19="",E19="",F19="",G19="",H19="",I19="",J19="",K19="",L19="",M19="",D20="",E20="",F20="",G20="",H20="",I20="",J20="",K20="",L20="",M20=""),1,0) -> 0
C20: M | D20: 0 | E20: 0 | F20: 0 | G20: 0 | H20: 0 | I20: 0 | J20: 0 | K20: 0 | L20: 0 | M20: 0 | N20: 0
C21: T | D21: =SUM(D20,D19) -> 0 | E21: 0 | F21: 0 | G21: 0 | H21: 0 | I21: 0 | J21: 0 | K21: 0 | L21: 0 | M21: 0 | N21: 0
A22: 1.1.4 | B22: Comissão de Serviço (al. c) do n.º 3 do artigo 6.º da LTFP e artigo 161.º do CT) (5) | C22: H | D22: 0 | E22: 0 | F22: 0 | G22: 0 | H22: 0 | I22: 0 | J22: 0 | K22: 0 | L22: 0 | M22: 0 | N22: =SUM(D22:M22) -> 0 | O22: =IF(OR(D22="",E22="",F22="",G22="",H22="",I22="",J22="",K22="",L22="",M22="",D23="",E23="",F23="",G23="",H23="",I23="",J23="",K23="",L23="",M23=""),1,0) -> 0
C23: M | D23: 0 | E23: 0 | F23: 0 | G23: 0 | H23: 0 | I23: 0 | J23: 0 | K23: 0 | L23: 0 | M23: 0 | N23: 0
C24: T | D24: =SUM(D23,D22) -> 0 | E24: 0 | F24: 0 | G24: 0 | H24: 0 | I24: 0 | J24: 0 | K24: 0 | L24: 0 | M24: 0 | N24: 0
A25: 1.1.5 | B25: Mobilidades (art. 92.º da LTFP e artigo 120.º do CT) (6) | C25: H | D25: 0 | E25: 0 | F25: 0 | G25: 0 | H25: 0 | I25: 0 | J25: 0 | K25: 0 | L25: 0 | M25: 0 | N25: 0 | O25: =IF(OR(D25="",E25="",F25="",G25="",H25="",I25="",J25="",K25="",L25="",M25="",D26="",E26="",F26="",G26="",H26="",I26="",J26="",K26="",L26="",M26=""),1,0) -> 0
C26: M | D26: 0 | E26: 0 | F26: 0 | G26: 0 | H26: 0 | I26: 0 | J26: 0 | K26: 0 | L26: 1 | M26: 0 | N26: 1
C27: T | D27: =SUM(D26,D25) -> 0 | E27: 0 | F27: 0 | G27: 0 | H27: 0 | I27: 0 | J27: 0 | K27: 0 | L27: 1 | M27: 0 | N27: 1
A28: 1.1.6 | B28: Cedência de interesse público (artigo 214.º da LTPF) | C28: H | D28: 0 | E28: 0 | F28: 0 | G28: 0 | H28: 0 | I28: 0 | J28: 0 | K28: 0 | L28: 0 | M28: 0 | N28: 0 | O28: =IF(OR(D28="",E28="",F28="",G28="",H28="",I28="",J28="",K28="",L28="",M28="",D29="",E29="",F29="",G29="",H29="",I29="",J29="",K29="",L29="",M29=""),1,0) -> 0
C29: M | D29: 0 | E29: 0 | F29: 0 | G29: 0 | H29: 0 | I29: 0 | J29: 0 | K29: 0 | L29: 0 | M29: 0 | N29: 0
C30: T | D30: =SUM(D29,D28) -> 0 | E30: 0 | F30: 0 | G30: 0 | H30: 0 | I30: 0 | J30: 0 | K30: 0 | L30: 0 | M30: 0 | N30: 0
A31: 1.1.7 | B31: Outros (7) | C31: H | D31: 0 | E31: 0 | F31: 0 | G31: 0 | H31: 0 | I31: 0 | J31: 0 | K31: 0 | L31: 0 | M31: 0 | N31: 0 | O31: =IF(OR(D31="",E31="",F31="",G31="",H31="",I31="",J31="",K31="",L31="",M31="",D32="",E32="",F32="",G32="",H32="",I32="",J32="",K32="",L32="",M32=""),1,0) -> 0
C32: M | D32: 0 | E32: 0 | F32: 0 | G32: 0 | H32: 0 | I32: 0 | J32: 0 | K32: 0 | L32: 0 | M32: 0 | N32: 0
C33: T | D33: =SUM(D32,D31) -> 0 | E33: 0 | F33: 0 | G33: 0 | H33: 0 | I33: 0 | J33: 0 | K33: 0 | L33: 0 | M33: 0 | N33: 0
A35: Por favor refira quais as carreiras incluídas na coluna "Outros":
O36: =IF(AND(M33<>0,A36=""),"ERRO","OK") -> OK
A38: Por favor enuncie quais as situações referidas na linha "Outros" (1.1.4):
O39: =IF(AND(N33>0,OR(A39="",A39=0)),"ERRO","OK") -> OK
A41: 1. | B41: Recursos Humanos (1) | D41: Dirigente (8) | E41: Técnico Superior | F41: Assistente Técnico (9) | G41: Assistente Operacional (10) | H41: Carreiras e Categorias subsistentes (11) | I41: Carreiras e Corpos especiais (12) | J41: Carreira Médica | K41: Carreira de Enfermagem | L41: Carreira Docente | M41: Outros | N41: Total
B42: Total de efectivos (balanço do ano anterior): | C42: H | D42: 1 | E42: 0 | F42: 0 | G42: 4 | H42: 0 | I42: 1 | J42: 0 | K42: 0 | L42: 11 | M42: 0 | N42: =SUM(D42:M42) -> 17 | O42: =IF(OR(D42="",E42="",F42="",G42="",H42="",I42="",J42="",K42="",L42="",M42="",D43="",E43="",F43="",G43="",H43="",I43="",J43="",K43="",L43="",M43=""),1,0) -> 0
C43: M | D43: 2 | E43: 2 | F43: 10 | G43: 22 | H43: 0 | I43: 5 | J43: 0 | K43: 0 | L43: 39 | M43: 0 | N43: =SUM(D43:M43) -> 80
C44: T | D44: =SUM(D42:D43) -> 3 | E44: 2 | F44: 10 | G44: 26 | H44: 0 | I44: 6 | J44: 0 | K44: 0 | L44: 50 | M44: 0 | N44: =SUM(D44:M44) -> 97
A46: SIMULADOR - VALORES ESPERADOS PARA O BALANÇO A ENTREGAR TENDO EM CONTA OS TRABALHADORES REGISTADOS NO BALANÇO ANTERIOR, MENOS AS SAIDAS, MAIS AS ENTRADAS REGISTADAS NO ATUAL BALANÇO
A47: 1. | B47: Recursos Humanos (1) | D47: Dirigente (8) | E47: Técnico Superior | F47: Assistente Técnico (9) | G47: Assistente Operacional (10) | H47: Carreiras e Categorias subsistentes (11) | I47: Carreiras e Corpos especiais (12) | J47: Carreira Médica | K47: Carreira de Enfermagem | L47: Carreira Docente | M47: Outros | N47: Total
B48: Total de efectivos (valores esperados) | C48: H | D48: =D42+Admissões!D16-Saídas!D16 -> 1 | E48: =E42+Admissões!E16-Saídas!E16 -> 0 | F48: =F42+Admissões!F16-Saídas!F16 -> 0 | G48: =G42+Admissões!G16-Saídas!G16 -> 4 | H48: =H42+Admissões!H16-Saídas!H16 -> 0 | I48: =I42+Admissões!I16-Saídas!I16 -> 2 | J48: =J42+Admissões!J16-Saídas!J16 -> 0 | K48: =K42+Admissões!K16-Saídas!K16 -> 0 | L48: =L42+Admissões!L16-Saídas!L16 -> 15 | M48: =M42+Admissões!M16-Saídas!M16 -> 0 | N48: =SUM(D48:M48) -> 22 | Q48: =IF(D48<>D4,"X","") -> 
C49: M | D49: =D43+Admissões!D17-Saídas!D17 -> 2 | E49: =E43+Admissões!E17-Saídas!E17 -> 2 | F49: =F43+Admissões!F17-Saídas!F17 -> 10 | G49: =G43+Admissões!G17-Saídas!G17 -> 21 | H49: =H43+Admissões!H17-Saídas!H17 -> 0 | I49: =I43+Admissões!I17-Saídas!I17 -> 5 | J49: =J43+Admissões!J17-Saídas!J17 -> 0 | K49: =K43+Admissões!K17-Saídas!K17 -> 0 | L49: =L43+Admissões!L17-Saídas!L17 -> 41 | M49: =M43+Admissões!M17-Saídas!M17 -> 0 | N49: 81
C50: T | D50: =D48+D49 -> 3 | E50: =E48+E49 -> 2 | F50: 10 | G50: 25 | H50: 0 | I50: 7 | J50: 0 | K50: 0 | L50: 56 | M50: 0 | N50: 103
A52: Notas (são válidas para os restantes mapas):
A53: (1) Deverão ser considerados todos os trabalhadores em exercício de funções que se encontrem ao serviço em 31 de dezembro, independentemente do tipo de vínculo. Não devem ser contabilizados os trabalhadores que, embora pertencendo ao mapa de pessoal do serviço, se encontrem a exercer funções noutros serviços, designadamente ao abrigo de instrumentos de mobilidade. Os trabalhadores em mobilidade interna para outras categorias deverão ser incluídos no serviço e carreira de destino, de acordo com o respectivo vínculo que detenham.
A54: (2) Deverão ser considerados nas linhas 1.1.1.1 e 1.1.1.2 todos os trabalhadores com contratos de trabalho em funções públicas. Os docentes com lugar de quadro (escola ou quadro de zona pedagógica) devem ser contabilizados na linha "Contrato por tempo indeterminado" (ponto 1.1.1.1.) e os docente com contratos a termo resolutivo na linha "Contrato a termo resolutivo, certo ou incerto" (ponto 1.1.1.2).
A55: (3) Considerar apenas trabalhadores de carreiras com nomeação. No ambito da S.R.E. apenas os trabalhadores da carreira de Inspeção estão abrangidos por esta modalidade de vinculação.
A56: (4) Considerar apenas trabalhadores com contrato individual de trabalho celebrado nos termos previstos no Código do Trabalho.
A57: (5) Considerar os titulares de cargos (ou equiparados) abrangido pelo Estatuto do Pessoal Dirigente, bem como os detentores de Cargos Políticos e Pessoal dos Gabinetes.
A58: (6) Para além dos trabalhadores em mobilidade ao abrigo do artigo 92.º da LTFP, deverá igualmente considerar-se os docentes em mobilidade no serviço/na escola. Não deverão ser considerados os trabalhadores docentes e não docentes em mobilidade para outros serviços /escolas.
A59: (7) Deverão ser incluidos nesta linha os trabalhadores ao abrigo de programas do Instituto do Emprego: estágios profissional, programa ocupacional de trabalhadores subsidiados e programa ocupacional de desempregados.
A60: (8) Considerar os titulares de cargos (ou equiparados) abrangido pelo Estatuto do Pessoal Dirigente, bem como os detentores de Cargos Políticos e Pessoal dos Gabinetes. Relativamente aos estabelecimentos de educação e ensino deverão ser incluidos nesta coluna os Directores, Presidentes do Conselho Executivo, Presidentes da Comissão Instaladora e os respectivos Adjuntos ou Vice-Presidentes. Esta indicação é válida para os restantes mapas.
A61: (9) Considerar todas as categorias da carreira de regime geral de Assistente Técnico, nomeadamente, Assistente Técnico e Coordenador Técnico.
A62: (10) Considerar todas as categorias da carreira de regime geral de Assistente Operacional, nomeadamente, Assistente Operacional, Encarregado Operacional e Encarregado Geral Operacional.
A63: (11) Considerar as carreiras subsistentes de Chefe de Departamento, Coordenador, Coordenador Especialista, Chefe de Serviços de Administração Escolar, Encarregado de Pessoal Auxiliar e Encarregado de Pessoal Auxiliar de Acção Educativa.
A64: (12) Considerar, nomeadamente, as carreiras especiais de Técnico e Especialista de Informática, Técnicos de Apoio à Infância, Técnicos Superiores das Áreas de Diagnóstico e Terapêutica e de Inspecção.
A66: Observações:

Sheet Estrut. Etária
A1: =IF(Identificação!C17="","",Identificação!C17) -> ESCOLA BÁSICA E SECUNDÁRIA COM PRÉ-ESCOLAR E CRECHE DO PORTO MONIZ
A2: =IF(Validação!E9="Preenchido","","Mensagem: " & Validação!E9 & "! " & Validação!E10) -> 
A3: 1.2 | B3: Estrutura Etária (1) | C3: Homens | D3: Mulheres | E3: Total
B4: Até 24 anos | C4: 0 | D4: 0 | E4: =SUM(C4,D4) -> 0 | F4: =IF(OR(C4="",D4=""),1,0) -> 0 | G4: =SUM(F4,F5,F6,F7,F8,F9,F10,F11,F12,F13,F14) -> 0 | H4: =IF(SUM(C4:C14)<>'Recursos Humanos'!N4,"ERROH",IF(SUM(D4:D14)<>'Recursos Humanos'!N5,"ERROM","OK")) -> OK | I4: 22
B5: 25-29 | C5: 1 | D5: 1 | E5: 2 | F5: 0 | I5: 27
B6: 30-34 | C6: 2 | D6: 1 | E6: 3 | F6: 0 | I6: 32
B7: 35-39 | C7: 0 | D7: 7 | E7: 7 | F7: 0 | I7: 37
B8: 40-44 | C8: 8 | D8: 17 | E8: 25 | F8: 0 | I8: 42
B9: 45-49 | C9: 5 | D9: 17 | E9: 22 | F9: 0 | I9: 47
B10: 50-54 | C10: 3 | D10: 14 | E10: 17 | F10: 0 | I10: 52
B11: 55-59 | C11: 2 | D11: 10 | E11: 12 | F11: 0 | I11: 57
B12: 60-64 | C12: 1 | D12: 9 | E12: 10 | F12: 0 | I12: 62
B13: 65-69 | C13: 0 | D13: 5 | E13: 5 | F13: 0 | I13: 67
B14: 70 e mais | C14: 0 | D14: 0 | E14: 0 | F14: 0 | I14: 70 | J14: =IF(E14>0,"ERRO70","OK") -> OK
A15: 1.3 (2) | D15: Nível médio etário: | E15: =IF(SUM(E4:E14)=0,0,(E4*I4+E5*I5+E6*I6+E7*I7+E8*I8+E9*I9+E10*I10+E11*I11+E12*I12+E13*I13+E14*I14)/SUM(E4:E14)) -> 48.69902913 | F15: =IF(E15="",1,0) -> 0 | G15: =SUM(F15,F16,F17) -> 0
D16: Nível médio etário masculino: | E16: =IF(SUM(C4:C14)=0,0,(C4*I4+C5*I5+C6*I6+C7*I7+C8*I8+C9*I9+C10*I10+C11*I11+C12*I12+C13*I13+C14*I14)/SUM(C4:C14)) -> 45.18181818 | F16: =IF(E16="",1,0) -> 0
D17: Nível médio etário feminino: | E17: =IF(SUM(D4:D14)=0,0,(D4*I4+D5*I5+D6*I6+D7*I7+D8*I8+D9*I9+D10*I10+D11*I11+D12*I12+D13*I13+D14*I14)/SUM(D4:D14)) -> 49.65432099 | F17: =IF(E17="",1,0) -> 0
A19: Notas:
A20: (1) Considerar a idade de todos os trabalhadores ao serviço, independentemente do vínculo, em 31 de Dezembro.
A21: (2) Campos de preenchimento automático: Soma da média das idades ÷ Total de efectivos
A23: Observações:

Sheet Estrut. Antiguidades
A1: =IF(Identificação!C17="","",Identificação!C17) -> ESCOLA BÁSICA E SECUNDÁRIA COM PRÉ-ESCOLAR E CRECHE DO PORTO MONIZ
A2: =IF(Validação!E12="Preenchido","","Mensagem: " & Validação!E12 & "! " & Validação!E13) -> 
A3: 1.4 | B3: Estrutura Antiguidades (1) | C3: Homens | D3: Mulheres | E3: Total | F3: Dirigente | G3: Técnico Superior | H3: Assistente Técnico | I3: Assistente Operacional | J3: Carreiras e Categorias subsistentes | K3: Carreiras e Corpos especiais | L3: Carreira Médica | M3: Carreira de Enfermagem | N3: Carreira Docente | O3: Outros | P3: Total
B4: Até 5 anos | C4: 6 | D4: 8 | E4: =SUM(C4:D4) -> 14 | F4: 0 | G4: 1 | H4: 0 | I4: 0 | J4: 0 | K4: 1 | L4: 0 | M4: 0 | N4: 12 | O4: 0 | P4: =SUM(F4:O4) -> 14 | Q4: =IF(OR(F4="",G4="",H4="",I4="",J4="",K4="",L4="",M4="",N4="",O4=""),1,0) -> 0 | R4: =SUM(Q4,Q5,Q6,Q7,Q8,Q9,Q10,Q11) -> 0 | S4: =IF(SUM(C4:C11)<>'Recursos Humanos'!N4,"ERROH",IF(SUM(D4:D11)<>'Recursos Humanos'!N5,"ERROM","OK")) -> OK | T4: 5
B5: 5-9 | C5: 2 | D5: 2 | E5: 4 | F5: 0 | G5: 0 | H5: 0 | I5: 0 | J5: 0 | K5: 0 | L5: 0 | M5: 0 | N5: 4 | O5: 0 | P5: 4 | Q5: =IF(OR(F5="",G5="",H5="",I5="",J5="",K5="",L5="",M5="",N5="",O5=""),1,0) -> 0 | T5: 7
B6: 10-14 | C6: 3 | D6: 4 | E6: 7 | F6: 0 | G6: 0 | H6: 0 | I6: 0 | J6: 0 | K6: 0 | L6: 0 | M6: 0 | N6: 7 | O6: 0 | P6: 7 | Q6: 0 | T6: 12
B7: 15-19 | C7: 2 | D7: 13 | E7: 15 | F7: 0 | G7: 1 | H7: 0 | I7: 5 | J7: 0 | K7: 1 | L7: 0 | M7: 0 | N7: 8 | O7: 0 | P7: 15 | Q7: 0 | T7: 17
B8: 20-24 | C8: 5 | D8: 31 | E8: 36 | F8: 1 | G8: 0 | H8: 6 | I8: 15 | J8: 0 | K8: 4 | L8: 0 | M8: 0 | N8: 10 | O8: 0 | P8: 36 | Q8: 0 | T8: 22
B9: 25-29 | C9: 3 | D9: 12 | E9: 15 | F9: 2 | G9: 0 | H9: 3 | I9: 2 | J9: 0 | K9: 0 | L9: 0 | M9: 0 | N9: 8 | O9: 0 | P9: 15 | Q9: 0 | T9: 27
B10: 30-35 | C10: 1 | D10: 4 | E10: 5 | F10: 0 | G10: 0 | H10: 0 | I10: 3 | J10: 0 | K10: 0 | L10: 0 | M10: 0 | N10: 2 | O10: 0 | P10: 5 | Q10: 0 | T10: 32.5
B11: Mais de 36 | C11: 0 | D11: 7 | E11: 7 | F11: 0 | G11: 0 | H11: 1 | I11: 0 | J11: 0 | K11: 1 | L11: 0 | M11: 0 | N11: 5 | O11: 0 | P11: =SUM(F11:O11) -> 7 | Q11: 0 | S11: =IF(SUM(E4:E11)<>SUM(P4:P11),"ERRO","OK") -> OK | T11: 36
A12: 1.5 (2) | O12: Nível médio de antiguidade: | P12: =IF(SUM(E4:E11)=0,0,(P4*T4+P5*T5+P6*T6+P7*T7+P8*T8+P9*T9+P10*T10+P11*T11)/SUM(P4:P11)) -> 19.88834951 | Q12: =IF(P12="",1,0) -> 0 | R12: =SUM(Q12,Q13,Q14) -> 0
O13: Nível médio de antiguidade masculino: | P13: =IF(SUM(C4:C11)=0,0,(C4*T4+C5*T5+C6*T6+C7*T7+C8*T8+C9*T9+C10*T10+C11*T11)/SUM(C4:C11)) -> 15.34090909 | Q13: =IF(P13="",1,0) -> 0
O14: Nível médio de antiguidade feminino: | P14: =IF(SUM(D4:D11)=0,0,(D4*T4+D5*T5+D6*T6+D7*T7+D8*T8+D9*T9+D10*T10+D11*T11)/SUM(D4:D11)) -> 21.12345679 | Q14: =IF(P14="",1,0) -> 0
F15: =IF(SUM(F4:F11)<>'Recursos Humanos'!D6,"ERRO","OK") -> OK | G15: =IF(SUM(G4:G11)<>'Recursos Humanos'!E6,"ERRO","OK") -> OK | H15: =IF(SUM(H4:H11)<>'Recursos Humanos'!F6,"ERRO","OK") -> OK | I15: =IF(SUM(I4:I11)<>'Recursos Humanos'!G6,"ERRO","OK") -> OK | J15: =IF(SUM(J4:J11)<>'Recursos Humanos'!H6,"ERRO","OK") -> OK | K15: =IF(SUM(K4:K11)<>'Recursos Humanos'!I6,"ERRO","OK") -> OK | L15: =IF(SUM(L4:L11)<>'Recursos Humanos'!J6,"ERRO","OK") -> OK | M15: =IF(SUM(M4:M11)<>'Recursos Humanos'!K6,"ERRO","OK") -> OK | N15: =IF(SUM(N4:N11)<>'Recursos Humanos'!L6,"ERRO","OK") -> OK | O15: =IF(SUM(O4:O11)<>'Recursos Humanos'!M6,"ERRO","OK") -> OK
A16: Notas:
A17: (1) Considerar o número de anos (inteiros) de antiguidade na Função Pública, a 31 de dezembro.
A18: (2) Campos de preenchimento automático: Soma da média das antiguidades ÷ Total de efectivos
A20: Observações:

Sheet Trab. Estrangeiros
A1: =IF(Identificação!C17="","",Identificação!C17) -> ESCOLA BÁSICA E SECUNDÁRIA COM PRÉ-ESCOLAR E CRECHE DO PORTO MONIZ
A2: =IF(Validação!E15="Preenchido","","Mensagem: " & Validação!E15 & "! " & Validação!E16) -> 
A3: 1.6 | B3: Trabalhadores Estrangeiros (1) | C3: Homens | D3: Mulheres | E3: Total
A4: 1.6.1 | B4: De países da UE | C4: 0 | D4: 0 | E4: =SUM(C4,D4) -> 0 | F4: =IF(OR(C4="",D4=""),1,0) -> 0 | G4: =SUM(F4,F5,F6,F7) -> 0 | H4: =IF(OR(C5>0,D5>0,C6>0,D6>0,C7>0,D7>0),"ERRO","OK") -> OK
A5: 1.6.2 | B5: Dos PALOP | C5: 0 | D5: 0 | E5: =SUM(C5,D5) -> 0 | F5: =IF(OR(C5="",D5=""),1,0) -> 0
A6: 1.6.3 | B6: Do Brasil | C6: 0 | D6: 0 | E6: =SUM(C6,D6) -> 0 | F6: =IF(OR(C6="",D6=""),1,0) -> 0
A7: 1.6.4 | B7: De outros países | C7: 0 | D7: 0 | E7: =SUM(C7,D7) -> 0 | F7: =IF(OR(C7="",D7=""),1,0) -> 0
A8: 1.7 | B8: Trabalhadores deficientes (2) | C8: 0 | D8: 0 | E8: =SUM(C8,D8) -> 0 | G8: =IF(OR(C8="",D8=""),1,0) -> 0
A10: Notas:
A11: (1) Considerar apenas os trabalhadores com NACIONALIDADE estrangeira. Não considerar os trabalhadores portugueses que tenham NATURALIDADE de outro país.
A12: (2) Considerar os trabalhadores que beneficiem de redução fiscal em virtude da sua deficiência.
A14: Observações:

Sheet Estrut. Habilitacional
A1: =IF(Identificação!C17="","",Identificação!C17) -> ESCOLA BÁSICA E SECUNDÁRIA COM PRÉ-ESCOLAR E CRECHE DO PORTO MONIZ
A2: =IF(Validação!E21="Preenchido","","Mensagem: " & Validação!E21 & "! " & Validação!E22) -> 
A3: 1.8 | B3: Estrutura Habilitacional (1) | C3: Homens | D3: Mulheres | E3: Total | F3: %
B4: Até 4 anos de escolaridade | C4: 1 | D4: 5 | E4: =SUM(C4,D4) -> 6 | F4: =IF(OR(C4<>"",D4<>""),E4/$E$13,0) -> 0.05825242718 | G4: =IF(OR(C4="",D4=""),1,0) -> 0 | H4: =SUM(G4:G12) -> 0 | I4: =IF(SUM(C4:C12)<>'Recursos Humanos'!N4,"ERROH",IF(SUM(D4:D12)<>'Recursos Humanos'!N5,"ERROM","OK")) -> OK
B5: 6 anos de escolaridade | C5: 1 | D5: 18 | E5: 19 | F5: 0.1844660194 | G5: 0
B6: 9 anos de escolaridade | C6: 1 | D6: 1 | E6: 2 | F6: 0.01941747573 | G6: 0
B7: 11 anos de escolaridade | C7: 0 | D7: 2 | E7: 2 | F7: 0.01941747573 | G7: 0
B8: 12 anos de escolaridade | C8: 1 | D8: 10 | E8: 11 | F8: 0.1067961165 | G8: 0
B9: Bacharelato ou curso médio | C9: 0 | D9: 0 | E9: 0 | F9: 0 | G9: 0
B10: Licenciatura | C10: 14 | D10: 40 | E10: 54 | F10: 0.5242718447 | G10: 0
B11: Mestrado | C11: 4 | D11: 5 | E11: 9 | F11: 0.08737864078 | G11: 0
B12: Doutoramento | C12: 0 | D12: 0 | E12: 0 | F12: 0 | G12: 0
E13: =SUM(E4:E12) -> 103
A14: Notas:
A15: (1) Considerar as habilitações literárias de todos os trabalhadores ao serviço, em 31 de dezembro.
A17: Observações:

Sheet Admissões
A1: =IF(Identificação!C17="","",Identificação!C17) -> ESCOLA BÁSICA E SECUNDÁRIA COM PRÉ-ESCOLAR E CRECHE DO PORTO MONIZ
A2: =IF(Validação!E24="Preenchido","","Mensagem: " & Validação!E24 & "! " & Validação!E25) -> 
A3: 1.9 | B3: Admissões (1) | D3: Dirigente | E3: Técnico Superior | F3: Assistente Técnico | G3: Assistente Operacional | H3: Carreiras e Categorias subsistentes | I3: Carreiras e Corpos especiais | J3: Carreira Médica | K3: Carreira de Enfermagem | L3: Carreira Docente | M3: Outros | N3: Total
A4: 1.9.1 | B4: Nomeação | C4: H | D4: 0 | E4: 0 | F4: 0 | G4: 0 | H4: 0 | I4: 0 | J4: 0 | K4: 0 | L4: 0 | M4: 0 | N4: =SUM(D4:M4) -> 0 | O4: =IF(OR(D4="",E4="",F4="",G4="",H4="",I4="",J4="",K4="",L4="",M4="",D5="",E5="",F5="",G5="",H5="",I5="",J5="",K5="",L5="",M5=""),1,0) -> 0 | P4: =SUM(O4,O7,O10,O13) -> 0
C5: M | D5: 0 | E5: 0 | F5: 0 | G5: 0 | H5: 0 | I5: 0 | J5: 0 | K5: 0 | L5: 0 | M5: 0 | N5: 0
C6: T | D6: =SUM(D4,D5) -> 0 | E6: 0 | F6: 0 | G6: 0 | H6: 0 | I6: 0 | J6: 0 | K6: 0 | L6: 0 | M6: 0 | N6: 0
A7: 1.9.2 | B7: Contrato por tempo indeterminado | C7: H | D7: 0 | E7: 0 | F7: 0 | G7: 0 | H7: 0 | I7: 1 | J7: 0 | K7: 0 | L7: 1 | M7: 0 | N7: 2 | O7: =IF(OR(D7="",E7="",F7="",G7="",H7="",I7="",J7="",K7="",L7="",M7="",D8="",E8="",F8="",G8="",H8="",I8="",J8="",K8="",L8="",M8=""),1,0) -> 0
C8: M | D8: 0 | E8: 0 | F8: 0 | G8: 0 | H8: 0 | I8: 0 | J8: 0 | K8: 0 | L8: 8 | M8: 0 | N8: 8
C9: T | D9: =SUM(D7,D8) -> 0 | E9: 0 | F9: 0 | G9: 0 | H9: 0 | I9: 1 | J9: 0 | K9: 0 | L9: 9 | M9: 0 | N9: 10
A10: 1.9.3 | B10: Contrato a termo resolutivo, certo ou incerto (2) | C10: H | D10: 0 | E10: 0 | F10: 0 | G10: 0 | H10: 0 | I10: 0 | J10: 0 | K10: 0 | L10: 7 | M10: 0 | N10: 7 | O10: =IF(OR(D10="",E10="",F10="",G10="",H10="",I10="",J10="",K10="",L10="",M10="",D11="",E11="",F11="",G11="",H11="",I11="",J11="",K11="",L11="",M11=""),1,0) -> 0
C11: M | D11: 0 | E11: 0 | F11: 0 | G11: 0 | H11: 0 | I11: 0 | J11: 0 | K11: 0 | L11: 10 | M11: 0 | N11: 10
C12: T | D12: =SUM(D10,D11) -> 0 | E12: 0 | F12: 0 | G12: 0 | H12: 0 | I12: 0 | J12: 0 | K12: 0 | L12: 17 | M12: 0 | N12: 17
A13: 1.9.4 | B13: Outros (3) | C13: H | D13: 0 | E13: 0 | F13: 0 | G13: 0 | H13: 0 | I13: 0 | J13: 0 | K13: 0 | L13: 0 | M13: 0 | N13: 0 | O13: =IF(OR(D13="",E13="",F13="",G13="",H13="",I13="",J13="",K13="",L13="",M13="",D14="",E14="",F14="",G14="",H14="",I14="",J14="",K14="",L14="",M14=""),1,0) -> 0
C14: M | D14: 0 | E14: 0 | F14: 0 | G14: 0 | H14: 0 | I14: 0 | J14: 0 | K14: 0 | L14: 0 | M14: 0 | N14: 0
C15: T | D15: =SUM(D13,D14) -> 0 | E15: 0 | F15: 0 | G15: 0 | H15: 0 | I15: 0 | J15: 0 | K15: 0 | L15: 0 | M15: 0 | N15: 0
A16: 1.9.5 | B16: Total | C16: H | D16: =D4+D7+D10+D13 -> 0 | E16: =E4+E7+E10+E13 -> 0 | F16: 0 | G16: 0 | H16: 0 | I16: 1 | J16: 0 | K16: 0 | L16: =L4+L7+L10+L13 -> 8 | M16: 0 | N16: =SUM(D16:M16) -> 9 | O16: =IF(OR(D16="",E16="",F16="",G16="",H16="",I16="",J16="",K16="",L16="",M16="",D17="",E17="",F17="",G17="",H17="",I17="",J17="",K17="",L17="",M17=""),1,0) -> 0
C17: M | D17: =D5+D8+D11+D14 -> 0 | E17: 0 | F17: 0 | G17: 0 | H17: 0 | I17: 0 | J17: 0 | K17: 0 | L17: =L5+L8+L11+L14 -> 18 | M17: 0 | N17: 18
C18: T | D18: =SUM(D16,D17) -> 0 | E18: 0 | F18: 0 | G18: 0 | H18: 0 | I18: 1 | J18: 0 | K18: 0 | L18: 26 | M18: 0 | N18: 27
D19: =IF(D16-Saídas!D16>'Recursos Humanos'!D4,"ERROH",IF(D17-Saídas!D17>'Recursos Humanos'!D5,"ERROM","OK")) -> OK | E19: =IF(E16-Saídas!E16>'Recursos Humanos'!E4,"ERROH",IF(E17-Saídas!E17>'Recursos Humanos'!E5,"ERROM","OK")) -> OK | F19: =IF(F16-Saídas!F16>'Recursos Humanos'!F4,"ERROH",IF(F17-Saídas!F17>'Recursos Humanos'!F5,"ERROM","OK")) -> OK | G19: =IF(G16-Saídas!G16>'Recursos Humanos'!G4,"ERROH",IF(G17-Saídas!G17>'Recursos Humanos'!G5,"ERROM","OK")) -> OK | H19: =IF(H16-Saídas!H16>'Recursos Humanos'!H4,"ERROH",IF(H17-Saídas!H17>'Recursos Humanos'!H5,"ERROM","OK")) -> OK | I19: =IF(I16-Saídas!I16>'Recursos Humanos'!I4,"ERROH",IF(I17-Saídas!I17>'Recursos Humanos'!I5,"ERROM","OK")) -> OK | J19: =IF(J16-Saídas!J16>'Recursos Humanos'!J4,"ERROH",IF(J17-Saídas!J17>'Recursos Humanos'!J5,"ERROM","OK")) -> OK | K19: =IF(K16-Saídas!K16>'Recursos Humanos'!K4,"ERROH",IF(K17-Saídas!K17>'Recursos Humanos'!K5,"ERROM","OK")) -> OK | L19: =IF(L16-Saídas!L16>'Recursos Humanos'!L4,"ERROH",IF(L17-Saídas!L17>'Recursos Humanos'!L5,"ERROM","OK")) -> OK | M19: =IF(M16-Saídas!M16>'Recursos Humanos'!M4,"ERROH",IF(M17-Saídas!M17>'Recursos Humanos'!M5,"ERROM","OK")) -> OK
A20: Por favor enuncie quais as situações referidas em "Outros" (1.9.4):
O21: =IF(AND(N15<>0,A21=""),"ERRO","OK") -> OK
A23: Notas:
A24: (1) Incluir todos os trabalhadores que ingressaram ou regressaram ao serviço entre 1 de janeiro e 31 de dezembro.
A25: (2) As admissões ou readmissões dos docentes contratados deverão ser considerados na linha "Contrato a termo resolutivo, certo ou incerto" (ponto 1.9.3).
A26: (3) Contabilizar os trabalhadores que, embora pertencendo a outros mapas de pessoal, tenham iniciado funções pela primeira vez neste organismo em mobilidade (entenda-se em sentido lato, incluindo requisições e destacamentos, entradas por comissão de serviço, cedências por interesse público, etc.).
A28: Observações:

Sheet Saídas
A1: =IF(Identificação!C17="","",Identificação!C17) -> ESCOLA BÁSICA E SECUNDÁRIA COM PRÉ-ESCOLAR E CRECHE DO PORTO MONIZ
A2: =IF(Validação!E27="Preenchido","","Mensagem: " & Validação!E27 & "! " & Validação!E28) -> 
A3: 1.10 | B3: Saídas (1) | D3: Dirigente | E3: Técnico Superior | F3: Assistente Técnico | G3: Assistente Operacional | H3: Carreiras e Categorias subsistentes | I3: Carreiras e Corpos especiais | J3: Carreira Médica | K3: Carreira de Enfermagem | L3: Carreira Docente | M3: Outros | N3: Total
A4: 1.10.1 | B4: Nomeação | C4: H | D4: 0 | E4: 0 | F4: 0 | G4: 0 | H4: 0 | I4: 0 | J4: 0 | K4: 0 | L4: 0 | M4: 0 | N4: =SUM(D4:M4) -> 0 | O4: =IF(OR(D4="",E4="",F4="",G4="",H4="",I4="",J4="",K4="",L4="",M4="",D5="",E5="",F5="",G5="",H5="",I5="",J5="",K5="",L5="",M5=""),1,0) -> 0 | P4: =SUM(O4,O7,O10,O13) -> 0
C5: M | D5: 0 | E5: 0 | F5: 0 | G5: 0 | H5: 0 | I5: 0 | J5: 0 | K5: 0 | L5: 0 | M5: 0 | N5: 0
C6: T | D6: =SUM(D4,D5) -> 0 | E6: 0 | F6: 0 | G6: 0 | H6: 0 | I6: 0 | J6: 0 | K6: 0 | L6: 0 | M6: 0 | N6: 0
A7: 1.10.2 | B7: Contrato por tempo indeterminado | C7: H | D7: 0 | E7: 0 | F7: 0 | G7: 0 | H7: 0 | I7: 0 | J7: 0 | K7: 0 | L7: 2 | M7: 0 | N7: 2 | O7: =IF(OR(D7="",E7="",F7="",G7="",H7="",I7="",J7="",K7="",L7="",M7="",D8="",E8="",F8="",G8="",H8="",I8="",J8="",K8="",L8="",M8=""),1,0) -> 0
C8: M | D8: 0 | E8: 0 | F8: 0 | G8: 1 | H8: 0 | I8: 0 | J8: 0 | K8: 0 | L8: 4 | M8: 0 | N8: 5
C9: T | D9: =SUM(D7,D8) -> 0 | E9: 0 | F9: 0 | G9: 1 | H9: 0 | I9: 0 | J9: 0 | K9: 0 | L9: 6 | M9: 0 | N9: 7
A10: 1.10.3 | B10: Contrato a termo resolutivo certo ou incerto (2) | C10: H | D10: 0 | E10: 0 | F10: 0 | G10: 0 | H10: 0 | I10: 0 | J10: 0 | K10: 0 | L10: 2 | M10: 0 | N10: 2 | O10: =IF(OR(D10="",E10="",F10="",G10="",H10="",I10="",J10="",K10="",L10="",M10="",D11="",E11="",F11="",G11="",H11="",I11="",J11="",K11="",L11="",M11=""),1,0) -> 0
C11: M | D11: 0 | E11: 0 | F11: 0 | G11: 0 | H11: 0 | I11: 0 | J11: 0 | K11: 0 | L11: 12 | M11: 0 | N11: 12
C12: T | D12: =SUM(D10,D11) -> 0 | E12: 0 | F12: 0 | G12: 0 | H12: 0 | I12: 0 | J12: 0 | K12: 0 | L12: 14 | M12: 0 | N12: 14
A13: 1.10.4 | B13: Outros (3) | C13: H | D13: 0 | E13: 0 | F13: 0 | G13: 0 | H13: 0 | I13: 0 | J13: 0 | K13: 0 | L13: 0 | M13: 0 | N13: 0 | O13: =IF(OR(D13="",E13="",F13="",G13="",H13="",I13="",J13="",K13="",L13="",M13="",D14="",E14="",F14="",G14="",H14="",I14="",J14="",K14="",L14="",M14=""),1,0) -> 0
C14: M | D14: 0 | E14: 0 | F14: 0 | G14: 0 | H14: 0 | I14: 0 | J14: 0 | K14: 0 | L14: 0 | M14: 0 | N14: 0
C15: T | D15: =SUM(D13,D14) -> 0 | E15: 0 | F15: 0 | G15: 0 | H15: 0 | I15: 0 | J15: 0 | K15: 0 | L15: 0 | M15: 0 | N15: 0
A16: 1.10.5 | B16: Total | C16: H | D16: =D4+D7+D10+D13 -> 0 | E16: =E4+E7+E10+E13 -> 0 | F16: 0 | G16: 0 | H16: 0 | I16: 0 | J16: 0 | K16: 0 | L16: =L4+L7+L10+L13 -> 4 | M16: 0 | N16: =SUM(D16:M16) -> 4 | O16: =IF(OR(D16="",E16="",F16="",G16="",H16="",I16="",J16="",K16="",L16="",M16="",D17="",E17="",F17="",G17="",H17="",I17="",J17="",K17="",L17="",M17=""),1,0) -> 0
C17: M | D17: =D5+D8+D11+D14 -> 0 | E17: =E5+E8+E11+E14 -> 0 | F17: 0 | G17: 1 | H17: 0 | I17: 0 | J17: 0 | K17: 0 | L17: =L5+L8+L11+L14 -> 16 | M17: 0 | N17: 17
C18: T | D18: =SUM(D16,D17) -> 0 | E18: 0 | F18: 0 | G18: 1 | H18: 0 | I18: 0 | J18: 0 | K18: 0 | L18: 20 | M18: 0 | N18: 21
A20: Por favor enuncie quais as situações referidas em "Outros" (1.10.4):
O21: =IF(AND(N15<>0,A21=""),"ERRO","OK") -> OK
A22: Notas:
A23: (1) Incluir todos os trabalhadores que saíram do serviço entre 1 de janeiro e 31 de dezembro, indepentendemente de se tratar de uma saída definitiva ou em mobilidade.
A24: (2) As cessações de docentes contratados deverão ser considerados na linha "Contrato a termo resolutivo, certo ou incerto" (ponto 1.10.3).
A25: (3) Contabilizar a saída de trabalhadores que estivessem a exercer funções neste organismo em mobilidade (entenda-se em sentido lato, incluindo requisições e destacamentos, fim de comissão de serviço dirigente, cedências por interesse público, etc.).
A27: Observações:

Sheet Saídas Nomeados
A1: =IF(Identificação!C17="","",Identificação!C17) -> ESCOLA BÁSICA E SECUNDÁRIA COM PRÉ-ESCOLAR E CRECHE DO PORTO MONIZ
A2: =IF(Validação!E30="Preenchido","","Mensagem: " & Validação!E30 & "! " & Validação!E31) -> 
A3: 1.11 | B3: Motivo das saídas dos trabalhadores nomeados (1) | C3: Dirigente | D3: Técnico Superior | E3: Assistente Técnico | F3: Assistente Operacional | G3: Carreiras e Categorias subsistentes | H3: Carreiras e Corpos especiais | I3: Carreira Médica | J3: Carreira de Enfermagem | K3: Carreira Docente | L3: Outros | M3: Total
A4: 1.11.1 | B4: Falecimento | C4: 0 | D4: 0 | E4: 0 | F4: 0 | G4: 0 | H4: 0 | I4: 0 | J4: 0 | K4: 0 | L4: 0 | M4: =SUM(C4:L4) -> 0 | N4: =IF(OR(C4="",D4="",E4="",F4="",G4="",H4="",I4="",J4="",K4="",L4=""),1,0) -> 0 | O4: =SUM(N4,N5,N6,N7,N8,N9,N10,N11) -> 0
A5: 1.11.2 | B5: Exoneração | C5: 0 | D5: 0 | E5: 0 | F5: 0 | G5: 0 | H5: 0 | I5: 0 | J5: 0 | K5: 0 | L5: 0 | M5: 0 | N5: =IF(OR(C5="",D5="",E5="",F5="",G5="",H5="",I5="",J5="",K5="",L5=""),1,0) -> 0
A6: 1.11.3 | B6: Aposentação | C6: 0 | D6: 0 | E6: 0 | F6: 0 | G6: 0 | H6: 0 | I6: 0 | J6: 0 | K6: 0 | L6: 0 | M6: 0 | N6: 0
A7: 1.11.4 | B7: Limite de idade | C7: 0 | D7: 0 | E7: 0 | F7: 0 | G7: 0 | H7: 0 | I7: 0 | J7: 0 | K7: 0 | L7: 0 | M7: 0 | N7: 0
A8: 1.11.5 | B8: Aposentação compulsiva | C8: 0 | D8: 0 | E8: 0 | F8: 0 | G8: 0 | H8: 0 | I8: 0 | J8: 0 | K8: 0 | L8: 0 | M8: 0 | N8: 0
A9: 1.11.6 | B9: Demissão | C9: 0 | D9: 0 | E9: 0 | F9: 0 | G9: 0 | H9: 0 | I9: 0 | J9: 0 | K9: 0 | L9: 0 | M9: 0 | N9: 0
A10: 1.11.7 | B10: Mútuo acordo | C10: 0 | D10: 0 | E10: 0 | F10: 0 | G10: 0 | H10: 0 | I10: 0 | J10: 0 | K10: 0 | L10: 0 | M10: 0 | N10: 0
A11: 1.11.8 | B11: Outros | C11: 0 | D11: 0 | E11: 0 | F11: 0 | G11: 0 | H11: 0 | I11: 0 | J11: 0 | K11: 0 | L11: 0 | M11: 0 | N11: 0
A12: 1.11.9 | B12: Total | C12: =SUM(C4:C11) -> 0 | D12: =SUM(D4:D11) -> 0 | E12: 0 | F12: 0 | G12: 0 | H12: 0 | I12: 0 | J12: 0 | K12: 0 | L12: 0 | M12: 0
C13: =IF(C12<>Saídas!D6,"ERRO","OK") -> OK | D13: =IF(D12<>Saídas!E6,"ERRO","OK") -> OK | E13: =IF(E12<>Saídas!F6,"ERRO","OK") -> OK | F13: =IF(F12<>Saídas!G6,"ERRO","OK") -> OK | G13: =IF(G12<>Saídas!H6,"ERRO","OK") -> OK | H13: =IF(H12<>Saídas!I6,"ERRO","OK") -> OK | I13: =IF(I12<>Saídas!J6,"ERRO","OK") -> OK | J13: =IF(J12<>Saídas!K6,"ERRO","OK") -> OK | K13: =IF(K12<>Saídas!L6,"ERRO","OK") -> OK | L13: =IF(L12<>Saídas!M6,"ERRO","OK") -> OK
A14: Por favor enuncie quais as situações referidas em "Outros" (1.11.8):
N15: =IF(AND(M11<>0,A15=""),"ERRO","OK") -> OK
A16: Notas:
A17: (1) Registar o motivo das saídas dos trabalhadores com nomeação indicados no ponto 1.10.1.
A19: Observações:

Sheet Saídas Contratados
A1: =IF(Identificação!C17="","",Identificação!C17) -> ESCOLA BÁSICA E SECUNDÁRIA COM PRÉ-ESCOLAR E CRECHE DO PORTO MONIZ
A2: =IF(Validação!E33="Preenchido","","Mensagem: " & Validação!E33& "! " & Validação!E34) -> 
A3: 1.12 | B3: Motivo das saídas dos trabalhadores contratados | C3: Dirigente | D3: Técnico Superior | E3: Assistente Técnico | F3: Assistente Operacional | G3: Carreiras e Categorias subsistentes | H3: Carreiras e Corpos especiais | I3: Carreira Médica | J3: Carreira de Enfermagem | K3: Carreira Docente | L3: Outros | M3: Total
A4: 1.12.1 | B4: Caducidade | C4: =C5+C6+C7 -> 0 | D4: =D5+D6+D7 -> 0 | E4: 0 | F4: 1 | G4: 0 | H4: 0 | I4: 0 | J4: 0 | K4: =K5+K6+K7 -> 0 | L4: 0 | M4: =SUM(C4:L4) -> 1 | N4: =IF(OR(C4="",D4="",E4="",F4="",G4="",H4="",I4="",J4="",K4="",L4=""),1,0) -> 0 | O4: =SUM(N4,N5,N6,N7,N8,N9,N10,N11) -> 0
A5: 1.12.1.1 | B5: Falecimento | C5: 0 | D5: 0 | E5: 0 | F5: 0 | G5: 0 | H5: 0 | I5: 0 | J5: 0 | K5: 0 | L5: 0 | M5: =SUM(C5:L5) -> 0 | N5: =IF(OR(C5="",D5="",E5="",F5="",G5="",H5="",I5="",J5="",K5="",L5=""),1,0) -> 0
A6: 1.12.1.2 | B6: Reforma/Aposentação | C6: 0 | D6: 0 | E6: 0 | F6: 1 | G6: 0 | H6: 0 | I6: 0 | J6: 0 | K6: 0 | L6: 0 | M6: 1 | N6: 0
A7: 1.12.1.3 | B7: Outras causas de caducidade | C7: 0 | D7: 0 | E7: 0 | F7: 0 | G7: 0 | H7: 0 | I7: 0 | J7: 0 | K7: 0 | L7: 0 | M7: 0 | N7: 0
A8: 1.12.2 | B8: Revogação | C8: 0 | D8: 0 | E8: 0 | F8: 0 | G8: 0 | H8: 0 | I8: 0 | J8: 0 | K8: 0 | L8: 0 | M8: 0 | N8: 0
A9: 1.12.3 | B9: Resolução | C9: 0 | D9: 0 | E9: 0 | F9: 0 | G9: 0 | H9: 0 | I9: 0 | J9: 0 | K9: 0 | L9: 0 | M9: 0 | N9: 0
A10: 1.12.4 | B10: Denúncia | C10: 0 | D10: 0 | E10: 0 | F10: 0 | G10: 0 | H10: 0 | I10: 0 | J10: 0 | K10: 0 | L10: 0 | M10: 0 | N10: 0
A11: 1.12.5 | B11: Outros | C11: 0 | D11: 0 | E11: 0 | F11: 0 | G11: 0 | H11: 0 | I11: 0 | J11: 0 | K11: 20 | L11: 0 | M11: 20 | N11: 0
A12: 1.12.9 | B12: Total | C12: =SUM(C5:C11) -> 0 | D12: =SUM(D5:D11) -> 0 | E12: 0 | F12: 1 | G12: 0 | H12: 0 | I12: =SUM(I4:I11) -> 0 | J12: 0 | K12: =SUM(K5:K11) -> 20 | L12: 0 | M12: 21
C13: =IF(C12<>Saídas!D9+Saídas!D12,"ERRO","OK") -> OK | D13: =IF(D12<>Saídas!E9+Saídas!E12,"ERRO","OK") -> OK | E13: =IF(E12<>Saídas!F9+Saídas!F12,"ERRO","OK") -> OK | F13: =IF(F12<>Saídas!G9+Saídas!G12,"ERRO","OK") -> OK | G13: =IF(G12<>Saídas!H9+Saídas!H12,"ERRO","OK") -> OK | H13: =IF(H12<>Saídas!I9+Saídas!I12,"ERRO","OK") -> OK | I13: =IF(I12<>Saídas!J9+Saídas!J12,"ERRO","OK") -> OK | J13: =IF(J12<>Saídas!K9+Saídas!K12,"ERRO","OK") -> OK | K13: =IF(K12<>Saídas!L9+Saídas!L12,"ERRO","OK") -> OK | L13: =IF(L12<>Saídas!M9+Saídas!M12,"ERRO","OK") -> OK
A14: Por favor enuncie quais as situações referidas em "Outros" (1.12.5):
A15: Caducidade de Contrato | N15: =IF(AND(M11<>0,A15=""),"ERRO","OK") -> OK
A16: Notas:
A17: (1) Registar o motivo das saídas dos trabalhadores com contrato a termo resolutivo ou por tempo indeterminado a indicados nos pontos 1.10.2, 1.10.3. Não incluir saídas de trabalhadores que tenham estado em mobilidade no serviço.
A19: Observações:

Sheet Postos de Trabalho
A1: =IF(Identificação!C17="","",Identificação!C17) -> ESCOLA BÁSICA E SECUNDÁRIA COM PRÉ-ESCOLAR E CRECHE DO PORTO MONIZ
A2: =IF(Validação!E36="Preenchido","","Mensagem: " & Validação!E36 & "! " & Validação!E37) -> 
A3: 1.13 | B3: Postos de trabalho não ocupados por dificuldades de provimento | C3: Carreira/profissão | D3: Número de postos de trabalho
A4: 1.13.1 | B4: Ausência de autorização pelas entidades competentes | C4: 0 | D4: 0 | E4: =IF(OR(B4="",C4=""),1,0) -> 0 | F4: =SUM(E4,E5,E6,E7) -> 0
A5: 1.13.2 | B5: Não abertura de procedimento | C5: 0 | D5: 0 | E5: =IF(OR(B5="",C5=""),1,0) -> 0
A6: 1.13.3 | B6: Impugnação do procedimento | C6: 0 | D6: 0 | E6: =IF(OR(B6="",C6=""),1,0) -> 0
A7: 1.13.4 | B7: Outras | C7: 0 | D7: 0 | E7: =IF(OR(B7="",C7=""),1,0) -> 0
A9: Por favor enuncie quais as situações referidas em "Outras" (1.13.4):
E10: =IF(AND(D7<>0,A10=""),"ERRO","OK") -> OK
A12: Observações:

Sheet Alter. Posic. e Promoções
A1: =IF(Identificação!C17="","",Identificação!C17) -> ESCOLA BÁSICA E SECUNDÁRIA COM PRÉ-ESCOLAR E CRECHE DO PORTO MONIZ
A2: =IF(Validação!E39="Preenchido","","Mensagem: " & Validação!E39 & "! " & Validação!E40) -> 
A3: 1.14 | B3: Alterações do Posicionamento Remuneratório / Promoções | D3: Dirigente | E3: Técnico Superior | F3: Assistente Técnico | G3: Assistente Operacional | H3: Carreiras e Categorias subsistentes | I3: Carreiras e Corpos especiais | J3: Carreira Médica | K3: Carreira de Enfermagem | L3: Carreira Docente | M3: Outros | N3: Total
B4: Alterações do posicionamento remuneratório | C4: H | D4: 0 | E4: 0 | F4: 0 | G4: 0 | H4: 0 | I4: 0 | J4: 0 | K4: 0 | L4: 5 | M4: 0 | N4: =SUM(D4:M4) -> 5 | O4: =IF(OR(D4="",E4="",F4="",G4="",H4="",I4="",J4="",K4="",L4="",M4="",D5="",E5="",F5="",G5="",H5="",I5="",J5="",K5="",L5="",M5=""),1,0) -> 0 | P4: =SUM(O4,O7) -> 0 | Q4: =IF(OR(D9<>0,E9<>0,F9<>0,G9<>0),"ERRO","OK") -> OK
A5: 1.14.1 | C5: M | D5: 2 | E5: 0 | F5: 0 | G5: 0 | H5: 0 | I5: 0 | J5: 0 | K5: 0 | L5: 14 | M5: 0 | N5: 16
C6: T | D6: =SUM(D4,D5) -> 2 | E6: 0 | F6: 0 | G6: 0 | H6: 0 | I6: 0 | J6: 0 | K6: 0 | L6: 19 | M6: 0 | N6: 21
B7: Promoções (carreiras e categorias subsistentes, carreiras e corpos especiais) | C7: H | D7: 0 | E7: 0 | F7: 0 | G7: 0 | H7: 0 | I7: 0 | J7: 0 | K7: 0 | L7: 0 | M7: 0 | N7: 0 | O7: =IF(OR(D7="",E7="",F7="",G7="",H7="",I7="",J7="",K7="",L7="",M7="",D8="",E8="",F8="",G8="",H8="",I8="",J8="",K8="",L8="",M8=""),1,0) -> 0
A8: 1.14.2 | C8: M | D8: 0 | E8: 0 | F8: 0 | G8: 0 | H8: 0 | I8: 0 | J8: 0 | K8: 0 | L8: 0 | M8: 0 | N8: 0
C9: T | D9: =SUM(D7,D8) -> 0 | E9: 0 | F9: 0 | G9: 0 | H9: 0 | I9: 0 | J9: 0 | K9: 0 | L9: 0 | M9: 0 | N9: 0
A10: 1.14.3 | B10: Total | D10: =SUM(D9,D6) -> 2 | E10: 0 | F10: 0 | G10: 0 | H10: 0 | I10: 0 | J10: 0 | K10: 0 | L10: 19 | M10: 0 | N10: 21
A15: Observações:

Sheet Modalidade de Horário
A1: =IF(Identificação!C17="","",Identificação!C17) -> ESCOLA BÁSICA E SECUNDÁRIA COM PRÉ-ESCOLAR E CRECHE DO PORTO MONIZ
A2: =IF(Validação!E42="Preenchido","","Mensagem: " & Validação!E42 & "! " & Validação!E43) -> 
A3: 1.15 | B3: Modalidades de Horário | C3: Dirigente (1) | D3: Técnico Superior | E3: Assistente Técnico (2) | F3: Assistente Operacional | G3: Carreiras e Categorias subsistentes | H3: Carreiras e Corpos especiais | I3: Carreira Médica | J3: Carreira de Enfermagem | K3: Carreira Docente (3) | L3: Outros | M3: Total
A4: 1.15.1 | B4: Horário rígido | C4: 0 | D4: 2 | E4: 9 | F4: 25 | G4: 0 | H4: 7 | I4: 0 | J4: 0 | K4: 0 | L4: 0 | M4: =SUM(C4:L4) -> 43 | N4: =IF(OR(C4="",D4="",E4="",F4="",G4="",H4="",I4="",J4="",K4="",L4=""),1,0) -> 0 | O4: =SUM(N4,N5,N6,N7,N8,N9,N10,N11,N12,N13,N14,N15,N16) -> 0 | P4: =IF(C17<>C11,"ERROISE","OK") -> OK
A5: 1.15.2 | B5: Horários flexíveis | C5: 0 | D5: 0 | E5: 0 | F5: 0 | G5: 0 | H5: 0 | I5: 0 | J5: 0 | K5: 0 | L5: 0 | M5: 0 | N5: =IF(OR(C5="",D5="",E5="",F5="",G5="",H5="",I5="",J5="",K5="",L5=""),1,0) -> 0
A6: 1.15.3 | B6: Horários desfasados | C6: 0 | D6: 0 | E6: 0 | F6: 0 | G6: 0 | H6: 0 | I6: 0 | J6: 0 | K6: 0 | L6: 0 | M6: 0 | N6: 0
A7: 1.15.4 | B7: Jornada contínua | C7: 0 | D7: 0 | E7: 0 | F7: 0 | G7: 0 | H7: 0 | I7: 0 | J7: 0 | K7: 0 | L7: 0 | M7: 0 | N7: 0
A8: 1.15.5 | B8: Trabalho por turnos | C8: 0 | D8: 0 | E8: 0 | F8: 0 | G8: 0 | H8: 0 | I8: 0 | J8: 0 | K8: 0 | L8: 0 | M8: 0 | N8: 0
A9: 1.15.6 | B9: Trabalhador-estudante | C9: 0 | D9: 0 | E9: 0 | F9: 0 | G9: 0 | H9: 0 | I9: 0 | J9: 0 | K9: 0 | L9: 0 | M9: 0 | N9: 0
A10: 1.15.7 | B10: Tempo parcial | C10: 0 | D10: 0 | E10: 0 | F10: 0 | G10: 0 | H10: 0 | I10: 0 | J10: 0 | K10: 0 | L10: 0 | M10: 0 | N10: 0
A11: 1.15.8 | B11: Isenção de horário | C11: 3 | D11: 0 | E11: 1 | F11: 0 | G11: 0 | H11: 0 | I11: 0 | J11: 0 | K11: 0 | L11: 0 | M11: 4 | N11: 0
A12: 1.15.9 | B12: Adaptabilidade | C12: 0 | D12: 0 | E12: 0 | F12: 0 | G12: 0 | H12: 0 | I12: 0 | J12: 0 | K12: 0 | L12: 0 | M12: 0 | N12: 0
A13: 1.15.10 | B13: Teletrabalho | C13: 0 | D13: 0 | E13: 0 | F13: 0 | G13: 0 | H13: 0 | I13: 0 | J13: 0 | K13: 0 | L13: 0 | M13: 0 | N13: 0
A14: 1.15.11 | B14: Meia jornada | C14: 0 | D14: 0 | E14: 0 | F14: 0 | G14: 0 | H14: 0 | I14: 0 | J14: 0 | K14: 0 | L14: 0 | M14: 0 | N14: 0
A15: 1.15.12 | B15: Horário específico | C15: 0 | D15: 0 | E15: 0 | F15: 0 | G15: 0 | H15: 0 | I15: 0 | J15: 0 | K15: 56 | L15: 0 | M15: =SUM(C15:L15) -> 56 | N15: 0
A16: 1.15.13 | B16: Dispensa da componente letiva | C16: 0 | D16: 0 | E16: 0 | F16: 0 | G16: 0 | H16: 0 | I16: 0 | J16: 0 | K16: 0 | L16: 0 | M16: =SUM(C16:L16) -> 0 | N16: 0
A17: 1.15.14 | B17: Total | C17: =SUM(C4:C16) -> 3 | D17: =SUM(D4:D16) -> 2 | E17: =SUM(E4:E16) -> 10 | F17: =SUM(F4:F16) -> 25 | G17: 0 | H17: =SUM(H4:H16) -> 7 | I17: 0 | J17: 0 | K17: =SUM(K4:K16) -> 56 | L17: =SUM(L4:L16) -> 0 | M17: 103
C18: =IF(C17<>'Recursos Humanos'!D6,"ERRO","OK") -> OK | D18: =IF(D17<>'Recursos Humanos'!E6,"ERRO","OK") -> OK | E18: =IF(E17<>'Recursos Humanos'!F6,"ERRO","OK") -> OK | F18: =IF(F17<>'Recursos Humanos'!G6,"ERRO","OK") -> OK | G18: =IF(G17<>'Recursos Humanos'!H6,"ERRO","OK") -> OK | H18: =IF(H17<>'Recursos Humanos'!I6,"ERRO","OK") -> OK | I18: =IF(I17<>'Recursos Humanos'!J6,"ERRO","OK") -> OK | J18: =IF(J17<>'Recursos Humanos'!K6,"ERRO","OK") -> OK | K18: =IF(K17<>'Recursos Humanos'!L6,"ERRO","OK") -> OK | L18: =IF(L17<>'Recursos Humanos'!M6,"ERRO","OK") -> OK
A19: Notas:
A20: (1) Os membros dos órgãos de gestão com dispensa da componente lectiva (Directores, Presidentes do Conselho Executivo e Comissões Instaladoras, Adjuntos e Vice-Presidentes) deverão ser incluídos no ponto 1.15.9 (isenção de horário).
A21: (2) Os Chefes de Departamento, de Serviços de Administração Escolar ou Coordenadores Técnicos deverão ser incluídos no ponto 1.15.9 (isenção de horário).
A22: (3) O pessoal docente deverá ser incluído no ponto 1.15.12 (horário específico). Os docentes com dispensa total da componente lectiva ao abrigo do Decreto Regulamentar Regional n.º 4/2009, de 9 de março ou do n.º 3 do artigo 75.º do ECD da RAM, deverão ser incluídos no ponto 1.15.13.
A24: Observações:

Sheet Trabalho Extraord.
A1: =IF(Identificação!C17="","",Identificação!C17) -> ESCOLA BÁSICA E SECUNDÁRIA COM PRÉ-ESCOLAR E CRECHE DO PORTO MONIZ
A2: =IF(Validação!E45="Preenchido","","Mensagem: " & Validação!E45 & " " & Validação!E46) -> 
A3: 1.16 | B3: Trabalho suplementar, nocturno e em dias de descanso semanal, complementar e feriados | D3: Número de horas
A4: 1.16.1 | B4: Trabalho suplementar (1) | C4: H | D4: 59 | E4: =IF(D5="",1,0) -> 0 | F4: =SUM(E4,E5,E7,E8,E10,E11,E13,E14,E16,E17,E19,E20,E22,E23) -> 0
C5: M | D5: 32 | E5: =IF(D5="",1,0) -> 0
C6: T | D6: =SUM(D4,D5) -> 91
A7: 1.16.2 | B7: Trabalho suplementar compensado por duração do período normal de trabalho | C7: H | D7: 0 | E7: =IF(D8="",1,0) -> 0
C8: M | D8: 0 | E8: =IF(D8="",1,0) -> 0
C9: T | D9: =SUM(D7,D8) -> 0
A10: 1.16.3 | B10: Trabalho suplementar compensado por acréscimo do período de férias | C10: H | D10: 0 | E10: =IF(D11="",1,0) -> 0
C11: M | D11: 0 | E11: =IF(D11="",1,0) -> 0
C12: T | D12: =SUM(D10,D11) -> 0
A13: 1.16.4 | B13: Trabalho nocturno | C13: H | D13: 0 | E13: =IF(D14="",1,0) -> 0
C14: M | D14: 0 | E14: =IF(D14="",1,0) -> 0
C15: T | D15: =SUM(D13,D14) -> 0
A16: 1.16.5 | B16: Em dias de descanso complementar (Sábado) | C16: H | D16: 0 | E16: =IF(D17="",1,0) -> 0
C17: M | D17: 0 | E17: =IF(D17="",1,0) -> 0
C18: T | D18: =SUM(D16,D17) -> 0
A19: 1.16.6 | B19: Em dias de descanso semanal obrigatório (Domingo) | C19: H | D19: 0 | E19: =IF(D20="",1,0) -> 0
C20: M | D20: 0 | E20: =IF(D20="",1,0) -> 0
C21: T | D21: =SUM(D19,D20) -> 0
A22: 1.16.7 | B22: Em dias feriados | C22: H | D22: 0 | E22: =IF(D23="",1,0) -> 0
C23: M | D23: 0 | E23: =IF(D23="",1,0) -> 0
C24: T | D24: =SUM(D22,D23) -> 0
A26: Notas:
A27: (1) Considerar todo o trabalho extraordinário, diurno ou nocturno, que tenha sido abonado
A29: Observações:

Sheet Ausências Trabalho
A1: =IF(Identificação!C17="","",Identificação!C17) -> ESCOLA BÁSICA E SECUNDÁRIA COM PRÉ-ESCOLAR E CRECHE DO PORTO MONIZ
A2: =IF(Validação!E48="Preenchido","","Mensagem: " & Validação!E48 & "! " & Validação!E49) -> 
A3: 1.17 | B3: Ausências ao trabalho (1) | D3: Dirigente | E3: Técnico Superior | F3: Assistente Técnico | G3: Assistente Operacional | H3: Carreiras e Categorias subsistentes | I3: Carreiras e Corpos especiais | J3: Carreira Médica | K3: Carreira de Enfermagem | L3: Carreira Docente | M3: Outros | N3: Total
A4: 1.17.1 | B4: Casamento | C4: H | D4: 0 | E4: 0 | F4: 0 | G4: 0 | H4: 0 | I4: 0 | J4: 0 | K4: 0 | L4: 0 | M4: 0 | N4: =SUM(D4:M4) -> 0 | O4: =IF(OR(D4="",E4="",F4="",G4="",H4="",I4="",J4="",K4="",L4="",M4="",D5="",E5="",F5="",G5="",H5="",I5="",J5="",K5="",L5="",M5=""),1,0) -> 0 | P4: =SUM(O4,O7,O10,O13,O16,O19,O22,O25,O28,O31,O34,O37,O40) -> 0
C5: M | D5: 0 | E5: 0 | F5: 0 | G5: 0 | H5: 0 | I5: 0 | J5: 0 | K5: 0 | L5: 0 | M5: 0 | N5: 0
C6: T | D6: =SUM(D4,D5) -> 0 | E6: 0 | F6: 0 | G6: 0 | H6: 0 | I6: 0 | J6: 0 | K6: 0 | L6: 0 | M6: 0 | N6: 0
A7: 1.17.2 | B7: Parentalidade (Maternidade e Paternidade) | C7: H | D7: 0 | E7: 0 | F7: 0 | G7: 0 | H7: 0 | I7: 0 | J7: 0 | K7: 0 | L7: 0 | M7: 0 | N7: 0 | O7: =IF(OR(D7="",E7="",F7="",G7="",H7="",I7="",J7="",K7="",L7="",M7="",D8="",E8="",F8="",G8="",H8="",I8="",J8="",K8="",L8="",M8=""),1,0) -> 0
C8: M | D8: 0 | E8: 313 | F8: 0 | G8: 0 | H8: 0 | I8: 0 | J8: 0 | K8: 0 | L8: 201 | M8: 0 | N8: 514
C9: T | D9: =SUM(D7,D8) -> 0 | E9: 313 | F9: 0 | G9: 0 | H9: 0 | I9: 0 | J9: 0 | K9: 0 | L9: 201 | M9: 0 | N9: 514
A10: 1.17.3 | B10: Nascimento | C10: H | D10: 0 | E10: 0 | F10: 0 | G10: 0 | H10: 0 | I10: 0 | J10: 0 | K10: 0 | L10: 0 | M10: 0 | N10: 0 | O10: =IF(OR(D10="",E10="",F10="",G10="",H10="",I10="",J10="",K10="",L10="",M10="",D11="",E11="",F11="",G11="",H11="",I11="",J11="",K11="",L11="",M11=""),1,0) -> 0
C11: M | D11: 0 | E11: 0 | F11: 0 | G11: 0 | H11: 0 | I11: 0 | J11: 0 | K11: 0 | L11: 0 | M11: 0 | N11: 0
C12: T | D12: =SUM(D10,D11) -> 0 | E12: 0 | F12: 0 | G12: 0 | H12: 0 | I12: 0 | J12: 0 | K12: 0 | L12: 0 | M12: 0 | N12: 0
A13: 1.17.4 | B13: Falecimento de familiar | C13: H | D13: 0 | E13: 0 | F13: 0 | G13: 0 | H13: 0 | I13: 5 | J13: 0 | K13: 0 | L13: 12 | M13: 0 | N13: 17 | O13: =IF(OR(D13="",E13="",F13="",G13="",H13="",I13="",J13="",K13="",L13="",M13="",D14="",E14="",F14="",G14="",H14="",I14="",J14="",K14="",L14="",M14=""),1,0) -> 0
C14: M | D14: 0 | E14: 0 | F14: 14 | G14: 0 | H14: 0 | I14: 1 | J14: 0 | K14: 0 | L14: 0 | M14: 0 | N14: 15
C15: T | D15: =SUM(D13,D14) -> 0 | E15: 0 | F15: 14 | G15: 0 | H15: 0 | I15: 6 | J15: 0 | K15: 0 | L15: 12 | M15: 0 | N15: 32
A16: 1.17.5 | B16: Doença | C16: H | D16: 0 | E16: 0 | F16: 0 | G16: 31 | H16: 0 | I16: 0 | J16: 0 | K16: 0 | L16: 238 | M16: 0 | N16: 269 | O16: =IF(OR(D16="",E16="",F16="",G16="",H16="",I16="",J16="",K16="",L16="",M16="",D17="",E17="",F17="",G17="",H17="",I17="",J17="",K17="",L17="",M17=""),1,0) -> 0
C17: M | D17: 5 | E17: 7 | F17: 48 | G17: 410 | H17: 0 | I17: 48 | J17: 0 | K17: 0 | L17: 853 | M17: 0 | N17: 1371
C18: T | D18: =SUM(D16,D17) -> 5 | E18: 7 | F18: 48 | G18: 441 | H18: 0 | I18: 48 | J18: 0 | K18: 0 | L18: 1091 | M18: 0 | N18: 1640
A19: 1.17.6 | B19: Doença prolongada | C19: H | D19: 0 | E19: 0 | F19: 0 | G19: 343 | H19: 0 | I19: 0 | J19: 0 | K19: 0 | L19: 0 | M19: 0 | N19: 343 | O19: =IF(OR(D19="",E19="",F19="",G19="",H19="",I19="",J19="",K19="",L19="",M19="",D20="",E20="",F20="",G20="",H20="",I20="",J20="",K20="",L20="",M20=""),1,0) -> 0
B20: prolongada | C20: M | D20: 0 | E20: 0 | F20: 0 | G20: 237 | H20: 0 | I20: 0 | J20: 0 | K20: 0 | L20: 574 | M20: 0 | N20: 811
C21: T | D21: =SUM(D19,D20) -> 0 | E21: 0 | F21: 0 | G21: 580 | H21: 0 | I21: 0 | J21: 0 | K21: 0 | L21: 574 | M21: 0 | N21: 1154
A22: 1.17.7 | B22: Assistência a familiares | C22: H | D22: 0 | E22: 0 | F22: 0 | G22: 2 | H22: 0 | I22: 1 | J22: 0 | K22: 0 | L22: 9 | M22: 0 | N22: 12 | O22: =IF(OR(D22="",E22="",F22="",G22="",H22="",I22="",J22="",K22="",L22="",M22="",D23="",E23="",F23="",G23="",H23="",I23="",J23="",K23="",L23="",M23=""),1,0) -> 0
B23: a familiares | C23: M | D23: 0 | E23: 4 | F23: 30 | G23: 19 | H23: 0 | I23: 0 | J23: 0 | K23: 0 | L23: 67 | M23: 0 | N23: 120
C24: T | D24: =SUM(D22,D23) -> 0 | E24: 4 | F24: 30 | G24: 21 | H24: 0 | I24: 1 | J24: 0 | K24: 0 | L24: 76 | M24: 0 | N24: 132
A25: 1.17.8 | B25: Trabalhador-estudante | C25: H | D25: 0 | E25: 0 | F25: 0 | G25: 0 | H25: 0 | I25: 0 | J25: 0 | K25: 0 | L25: 0 | M25: 0 | N25: 0 | O25: =IF(OR(D25="",E25="",F25="",G25="",H25="",I25="",J25="",K25="",L25="",M25="",D26="",E26="",F26="",G26="",H26="",I26="",J26="",K26="",L26="",M26=""),1,0) -> 0 | P25: =IF(AND('Modalidade de Horário'!M9>0,N27=0),"ERRO","OK") -> OK
B26: estudante | C26: M | D26: 0 | E26: 0 | F26: 0 | G26: 0 | H26: 0 | I26: 0 | J26: 0 | K26: 0 | L26: 0 | M26: 0 | N26: 0
C27: T | D27: =SUM(D25,D26) -> 0 | E27: 0 | F27: 0 | G27: 0 | H27: 0 | I27: 0 | J27: 0 | K27: 0 | L27: 0 | M27: 0 | N27: 0
A28: 1.17.9 | B28: Por conta do período de férias | C28: H | D28: 0 | E28: 0 | F28: 0 | G28: 6 | H28: 0 | I28: 6 | J28: 0 | K28: 0 | L28: 14 | M28: 0 | N28: 26 | O28: =IF(OR(D28="",E28="",F28="",G28="",H28="",I28="",J28="",K28="",L28="",M28="",D29="",E29="",F29="",G29="",H29="",I29="",J29="",K29="",L29="",M29=""),1,0) -> 0
B29: período de férias | C29: M | D29: 2 | E29: 3 | F29: 28 | G29: 23 | H29: 0 | I29: 3 | J29: 0 | K29: 0 | L29: 33 | M29: 0 | N29: 92
C30: T | D30: =SUM(D28,D29) -> 2 | E30: 3 | F30: 28 | G30: 29 | H30: 0 | I30: 9 | J30: 0 | K30: 0 | L30: 47 | M30: 0 | N30: 118
A31: 1.17.10 | B31: Por perda de vencimento | C31: H | D31: 0 | E31: 0 | F31: 0 | G31: 0 | H31: 0 | I31: 0 | J31: 0 | K31: 0 | L31: 0 | M31: 0 | N31: 0 | O31: =IF(OR(D31="",E31="",F31="",G31="",H31="",I31="",J31="",K31="",L31="",M31="",D32="",E32="",F32="",G32="",H32="",I32="",J32="",K32="",L32="",M32=""),1,0) -> 0
B32: de vencimento | C32: M | D32: 0 | E32: 0 | F32: 0 | G32: 0 | H32: 0 | I32: 0 | J32: 0 | K32: 0 | L32: 0 | M32: 0 | N32: 0
C33: T | D33: =SUM(D31,D32) -> 0 | E33: 0 | F33: 0 | G33: 0 | H33: 0 | I33: 0 | J33: 0 | K33: 0 | L33: 0 | M33: 0 | N33: 0
A34: 1.17.11 | B34: Cumprimento de pena disciplinar | C34: H | D34: 0 | E34: 0 | F34: 0 | G34: 0 | H34: 0 | I34: 0 | J34: 0 | K34: 0 | L34: 0 | M34: 0 | N34: 0 | O34: =IF(OR(D34="",E34="",F34="",G34="",H34="",I34="",J34="",K34="",L34="",M34="",D35="",E35="",F35="",G35="",H35="",I35="",J35="",K35="",L35="",M35=""),1,0) -> 0
B35: pena disciplinar | C35: M | D35: 0 | E35: 0 | F35: 0 | G35: 0 | H35: 0 | I35: 0 | J35: 0 | K35: 0 | L35: 0 | M35: 0 | N35: 0
C36: T | D36: =SUM(D34,D35) -> 0 | E36: 0 | F36: 0 | G36: 0 | H36: 0 | I36: 0 | J36: 0 | K36: 0 | L36: 0 | M36: 0 | N36: 0
A37: 1.17.12 | B37: Injustificadas | C37: H | D37: 0 | E37: 0 | F37: 0 | G37: 0 | H37: 0 | I37: 0 | J37: 0 | K37: 0 | L37: 0 | M37: 0 | N37: 0 | O37: =IF(OR(D37="",E37="",F37="",G37="",H37="",I37="",J37="",K37="",L37="",M37="",D38="",E38="",F38="",G38="",H38="",I38="",J38="",K38="",L38="",M38=""),1,0) -> 0
C38: M | D38: 0 | E38: 0 | F38: 0 | G38: 0 | H38: 0 | I38: 0 | J38: 0 | K38: 0 | L38: 0 | M38: 0 | N38: 0
C39: T | D39: =SUM(D37,D38) -> 0 | E39: 0 | F39: 0 | G39: 0 | H39: 0 | I39: 0 | J39: 0 | K39: 0 | L39: 0 | M39: 0 | N39: 0
A40: 1.17.13 | B40: Outras | C40: H | D40: 0 | E40: 0 | F40: 0 | G40: 17 | H40: 0 | I40: 0 | J40: 0 | K40: 0 | L40: 2 | M40: 0 | N40: 19 | O40: =IF(OR(D40="",E40="",F40="",G40="",H40="",I40="",J40="",K40="",L40="",M40="",D41="",E41="",F41="",G41="",H41="",I41="",J41="",K41="",L41="",M41=""),1,0) -> 0
C41: M | D41: 4 | E41: 7 | F41: 8 | G41: 19 | H41: 0 | I41: 5 | J41: 0 | K41: 0 | L41: 198 | M41: 0 | N41: 241
C42: T | D42: =SUM(D40,D41) -> 4 | E42: 7 | F42: 8 | G42: 36 | H42: 0 | I42: 5 | J42: 0 | K42: 0 | L42: 200 | M42: 0 | N42: 260
A43: 1.17.14 | B43: Total | C43: H | D43: =SUM(D4+D7+D10+D13+D16+D19+D22+D25+D28+D31+D34+D37+D40) -> 0 | E43: 0 | F43: 0 | G43: 399 | H43: 0 | I43: 12 | J43: 0 | K43: 0 | L43: =SUM(L4+L7+L10+L13+L16+L19+L22+L25+L28+L31+L34+L37+L40) -> 275 | M43: =SUM(M4+M7+M10+M13+M16+M19+M22+M25+M28+M31+M34+M37+M40) -> 0 | N43: 686
C44: M | D44: 11 | E44: 334 | F44: 128 | G44: 708 | H44: 0 | I44: 57 | J44: 0 | K44: 0 | L44: =SUM(L5+L8+L11+L14+L17+L20+L23+L26+L29+L32+L35+L38+L41) -> 1926 | M44: =SUM(M5+M8+M11+M14+M17+M20+M23+M26+M29+M32+M35+M38+M41) -> 0 | N44: 3164
C45: T | D45: =SUM(D43,D44) -> 11 | E45: 334 | F45: 128 | G45: 1107 | H45: 0 | I45: 69 | J45: 0 | K45: 0 | L45: 2201 | M45: 0 | N45: 3850
D46: =IF(AND('Recursos Humanos'!D4=0,D43<>0),"ERROH",IF(AND('Recursos Humanos'!D5=0,D44<>0),"ERROM","OK")) -> OK | E46: =IF(AND('Recursos Humanos'!E4=0,E43<>0),"ERROH",IF(AND('Recursos Humanos'!E5=0,E44<>0),"ERROM","OK")) -> OK | F46: =IF(AND('Recursos Humanos'!F4=0,F43<>0),"ERROH",IF(AND('Recursos Humanos'!F5=0,F44<>0),"ERROM","OK")) -> OK | G46: =IF(AND('Recursos Humanos'!G4=0,G43<>0),"ERROH",IF(AND('Recursos Humanos'!G5=0,G44<>0),"ERROM","OK")) -> OK | H46: =IF(AND('Recursos Humanos'!H4=0,H43<>0),"ERROH",IF(AND('Recursos Humanos'!H5=0,H44<>0),"ERROM","OK")) -> OK | I46: =IF(AND('Recursos Humanos'!I4=0,I43<>0),"ERROH",IF(AND('Recursos Humanos'!I5=0,I44<>0),"ERROM","OK")) -> OK | J46: =IF(AND('Recursos Humanos'!J4=0,J43<>0),"ERROH",IF(AND('Recursos Humanos'!J5=0,J44<>0),"ERROM","OK")) -> OK | K46: =IF(AND('Recursos Humanos'!K4=0,K43<>0),"ERROH",IF(AND('Recursos Humanos'!K5=0,K44<>0),"ERROM","OK")) -> OK | L46: =IF(AND('Recursos Humanos'!L4=0,L43<>0),"ERROH",IF(AND('Recursos Humanos'!L5=0,L44<>0),"ERROM","OK")) -> OK | M46: =IF(AND('Recursos Humanos'!M4=0,M43<>0),"ERROH",IF(AND('Recursos Humanos'!M5=0,M44<>0),"ERROM","OK")) -> OK | N46: =IF(AND('Recursos Humanos'!N4=0,N43<>0),"ERROH",IF(AND('Recursos Humanos'!N5=0,N44<>0),"ERROM","OK")) -> OK
A47: Por favor enuncie quais as situações referidas em "Outras" (1.17.13):
A48: DIRIGENTE: Participação em Projeto Erasmus: M - 4; TÉCNICO SUPERIOR: Isolamento Profilático: M -5 + Isolamento Profilático filho/dependente: M-2; ASSISTENTE TÉCNICO: Isolamento Profilático: M-6 + Dispensa de serviço (mesa de voto): M-2; ASSISTENTE OPERACIONAL: Isolamento Profilático: H-9 e M-15 + Isolamento Profilático filho/dependente: M-4 + Naõ imputáveis ao trabalhador: H-2 + Dispensa Serviço(Desporto): H-6; CARREIRA DOCENTE: Deslocação a estabelecimento de ensino: M-1 + Isolamento Profilático: M-31 + Isolamento Profilático filho/dependente: H-2 e M-33 + Não imputáveis ao trabalhador: M-3 + Dispensa de Serviço(Congresso): M-1 + Dispensa de serviço(Membro de mesa de voto): M-2 + Equiparação Bolseira/Lic.Sábatica: M-114 | O48: =IF(AND(N42<>0,A48=""),"ERRO","OK") -> OK
A49: Notas:
A50: (1) Considerar todas as ausências ao serviço entre 1 de janeiro e 31 de dezembro, EM DIAS.
A52: Observações:

Sheet Horas Não Trabalhadas
A1: =IF(Identificação!C17="","",Identificação!C17) -> ESCOLA BÁSICA E SECUNDÁRIA COM PRÉ-ESCOLAR E CRECHE DO PORTO MONIZ
A2: =IF(Validação!E51="Preenchido","","Mensagem: " & Validação!E51 & "! " & Validação!E52) -> 
A3: 1.18 | B3: Horas não trabalhadas (1) | D3: Dirigente | E3: Técnico Superior | F3: Assistente Técnico | G3: Assistente Operacional | H3: Carreiras e Categorias subsistentes | I3: Carreiras e Corpos especiais | J3: Carreira Médica | K3: Carreira de Enfermagem | L3: Carreira Docente | M3: Outros | N3: Total
A4: 1.18.1 | B4: Actividade sindical (2) | C4: H | D4: 0 | E4: 0 | F4: 0 | G4: 161 | H4: 0 | I4: 0 | J4: 0 | K4: 0 | L4: 0 | M4: 0 | N4: =SUM(D4:M4) -> 161 | O4: =IF(OR(D4="",E4="",F4="",G4="",H4="",I4="",J4="",K4="",L4="",M4="",D5="",E5="",F5="",G5="",H5="",I5="",J5="",K5="",L5="",M5=""),1,0) -> 0 | P4: =SUM(O4,O7) -> 0
C5: M | D5: 0 | E5: 0 | F5: 0 | G5: 0 | H5: 0 | I5: 0 | J5: 0 | K5: 0 | L5: 0 | M5: 0 | N5: 0
C6: T | D6: =SUM(D4,D5) -> 0 | E6: 0 | F6: 0 | G6: 161 | H6: 0 | I6: 0 | J6: 0 | K6: 0 | L6: 0 | M6: 0 | N6: 161
A7: 1.18.2 | B7: Greve | C7: H | D7: 0 | E7: 0 | F7: 0 | G7: 7 | H7: 0 | I7: 0 | J7: 0 | K7: 0 | L7: 10 | M7: 0 | N7: 17 | O7: =IF(OR(D7="",E7="",F7="",G7="",H7="",I7="",J7="",K7="",L7="",M7="",D8="",E8="",F8="",G8="",H8="",I8="",J8="",K8="",L8="",M8=""),1,0) -> 0
C8: M | D8: 0 | E8: 7 | F8: 7 | G8: 7 | H8: 0 | I8: 14 | J8: 0 | K8: 0 | L8: 30 | M8: 0 | N8: 65
C9: T | D9: =SUM(D7,D8) -> 0 | E9: 7 | F9: 7 | G9: 14 | H9: 0 | I9: 14 | J9: 0 | K9: 0 | L9: 40 | M9: 0 | N9: 82
A11: Notas:
A12: (1) Considerar as ausências ao serviço entre 1 de janeiro e 31 de dezembro, por motivo de 'Actividade Sindical' e 'Greve' EM HORAS.
A13: (2) Ao registar ausências por 'Actividade Sindical' deverá indicar trabalhadores sindicalizados no ponto 6.1.1 ('Relações Profissionais').
A15: Observações:

Sheet Encargos com Pessoal
A1: =IF(Identificação!C17="","",Identificação!C17) -> ESCOLA BÁSICA E SECUNDÁRIA COM PRÉ-ESCOLAR E CRECHE DO PORTO MONIZ
A2: =IF(Validação!E54="Preenchido","","Mensagem: " & Validação!E54 & "! " & Validação!E55) -> 
A3: 2. | B3: Encargos com pessoal | D3: Valor em euros
A4: 2.1 | B4: Remuneração base (1) | D4: 2354761 | E4: =IF(D4="",1,0) -> 0 | F4: =SUM(E4,E5,E6,E7,E8,E9,E10,E11,E12,E13,E14,E15,E16,E17,E18,E19) -> 0
A5: 2.2 | B5: Trabalho suplementar | D5: 1301.68 | E5: 0 | F5: =IF(AND('Trabalho Extraord.'!D6<>0,D5=0),"ERRO","OK") -> OK
A6: 2.3 | B6: Trabalho noturno | D6: 0 | E6: 0 | F6: =IF(AND('Trabalho Extraord.'!D15<>0,D6=0),"ERRO","OK") -> OK
A7: 2.4 | B7: Trabalho em descanso semanal, complementar e feriados | D7: 0 | E7: 0 | F7: =IF(AND(OR('Trabalho Extraord.'!D18<>0,'Trabalho Extraord.'!D21<>0,'Trabalho Extraord.'!D24<>0),D7=0),"ERRO","OK") -> OK
A8: 2.5 | B8: Disponibilidade permanente | D8: 0 | E8: 0
A9: 2.6 | B9: Outros regimes especiais de prestação de trabalho | D9: 0 | E9: 0
A10: 2.7 | B10: Risco, penosidade ou insalubridade | D10: 0 | E10: 0
A11: 2.8 | B11: Fixação na periferia | D11: 0 | E11: 0
A12: 2.9 | B12: Trabalho por turnos | D12: 0 | E12: 0
A13: 2.10 | B13: Abono para falhas | D13: 866.64 | E13: 0
A14: 2.11 | B14: Participação em reuniões | D14: 0 | E14: 0
A15: 2.12 | B15: Ajudas de custo | D15: 19.92 | E15: 0
A16: 2.13 | B16: Transferências de localidade | D16: 0 | E16: 0
A17: 2.14 | B17: Representação | D17: 0 | E17: 0
A18: 2.15 | B18: Secretariado | D18: 0 | E18: 0
A19: 2.16 | B19: Outros (2) | D19: 567341.08 | E19: 0
A20: 2.17 | B20: Total | D20: =SUM(D4:D19) -> 2924290.32
A21: 2.17.1 | B21: Leque salarial líquido | D21: =IF(OR(D22="",D23=""),"0",D22/D23) -> 4.14932215 | F21: =IF(D21<=1,"ERRO","OK") -> OK
A22: 2.17.1.1 | B22: Maior remuneração líquida (3) | D22: 2127.15 | E22: =IF(D22="",1,0) -> 0 | F22: =SUM(E22:E23) -> 0
A23: 2.17.1.2 | B23: Menor remuneração líquida (4) | D23: 512.65 | E23: =IF(D23="",1,0) -> 0
A25: Por favor enuncie quais as situações referidas em "Outros" (2.16), discriminando o total de cada rubrica incluída em outros:
A26: Compensação por caducidade contrato/docente: 876,30€ + Gratificação certas e permanentes: 27 069,03€ + Subs. Insularidade anual: 17 259,76€ + Subs. Insularidade mensal: 69,16 + Quotas da entidade patronal p/ a CGA: 374 751,09€ + Contribuições da entidade p/ a Segurança Social: 147 315,74€ | E26: =IF(AND(D19<>0,A26=""),"ERRO","OK") -> OK | N26: =IF(A26="",1,0) -> 0
A28: Notas:
A29: (1) Incluir igualmente o valor do subsídio de férias e de natal.
A30: (2) Por exemplo: subsídio de insularidade.
A31: (3) Introduzir a maior remuneração líquida verificada num determinado mês em que não tenham sido efectuados descontos ou abonados subsídios.
A32: (4) Introduzir a menor remuneração líquida verificada num determinado mês em que não tenham sido efectuados descontos ou abonados subsídios.
A34: Observações:

Sheet Acidentes em Serviço
A1: =IF(Identificação!C17="","",Identificação!C17) -> ESCOLA BÁSICA E SECUNDÁRIA COM PRÉ-ESCOLAR E CRECHE DO PORTO MONIZ
A2: =IF(Validação!E60="Preenchido","","Mensagem: " & Validação!E60 & "! " & Validação!E61) -> 
A3: 3. | B3: Higiene e Segurança
A4: 3.1 | B4: Acidentes em Serviço | C4: No local de Trabalho | G4: In itinere
C5: Total | D5: Menos de 60 dias de baixa | E5: 60 dias ou mais de baixa | F5: Mortais | G5: Total | H5: Menos de 60 dias de baixa | I5: 60 dias ou mais de baixa | J5: Mortais
A6: 3.1.1 | B6: Número total de acidentes | C6: =SUM(D6:F6) -> 1 | D6: =D13+D14+D12+D11+D10 -> 1 | E6: =E13+E14+E12+E11+E10 -> 0 | F6: 0 | G6: =SUM(H6:J6) -> 0 | H6: =H13+H14+H12+H11+H10 -> 0 | I6: =I13+I14+I12+I11+I10 -> 0 | J6: 0 | K6: =IF(OR(F6="",J6=""),1,0) -> 0 | L6: =SUM(K6,K8,K10,K11,K12,K13,K14) -> 0 | M6: =IF(OR(AND(D7<>0,D8=0),AND(D7=0,D8<>0)),"ERROLOCAL1",IF(OR(AND(H7<>0,H8=0),AND(H7=0,H8<>0)),"ERROTRAJ1",IF(OR(AND(E7<>0,E8=0),AND(E7=0,E8<>0)),"ERROLOCAL2",IF(OR(AND(I7<>0,I8=0),AND(I7=0,I8<>0)),"ERROTRAJ2","OK")))) -> OK | N6: =IF(OR(D8>(D10+D12+D13)*60,(H8>(H10+H12+H13)*60)),"ERROMENOS",IF(OR(E8<(E10+E12+E13)*60,(I8<(I10+I12+I13)*60)),"ERROMAIS","OK")) -> OK
A7: 3.1.2 | B7: Número de acidentes com baixa | C7: 1 | D7: =D12+D10+D13 -> 1 | E7: =E12+E10+E13 -> 0 | F7: - | G7: 0 | H7: =H12+H10+H13 -> 0 | I7: =I12+I10+I13 -> 0 | J7: -
A8: 3.1.3 | B8: Número de dias perdidos com baixa (1) | C8: 13 | D8: 13 | E8: 0 | F8: - | G8: 0 | H8: 0 | I8: 0 | J8: - | K8: =IF(OR(D8="",E8="",H8="",I8=""),1,0) -> 0
A9: 3.1.4 | B9: Número de casos de incapacidade permanente declarados no ano | C9: 0 | D9: =D10+D11+D12 -> 0 | E9: =E10+E11+E12 -> 0 | F9: - | G9: 0 | H9: =H10+H11+H12 -> 0 | I9: =I10+I11+I12 -> 0 | J9: -
A10: 3.1.5 | B10: Número de casos de incapacidade permanente absoluta | C10: 0 | D10: 0 | E10: 0 | F10: - | G10: 0 | H10: 0 | I10: 0 | J10: - | K10: =IF(OR(D10="",E10="",F10="",H10="",I10="",J10=""),1,0) -> 0
A11: 3.1.6 | B11: Número de casos de incapacidade permanente parcial | C11: 0 | D11: 0 | E11: 0 | F11: - | G11: 0 | H11: 0 | I11: 0 | J11: - | K11: =IF(OR(D11="",E11="",F11="",H11="",I11="",J11=""),1,0) -> 0
A12: 3.1.7 | B12: Número de casos de incapacidade permanente absoluta para o trabalho habitual | C12: 0 | D12: 0 | E12: 0 | F12: - | G12: 0 | H12: 0 | I12: 0 | J12: - | K12: =IF(OR(D12="",E12="",F12="",H12="",I12="",J12=""),1,0) -> 0
A13: 3.1.8 | B13: Número de casos de incapacidade temporária e absoluta | C13: 1 | D13: 1 | E13: 0 | F13: - | G13: 0 | H13: 0 | I13: 0 | J13: - | K13: =IF(OR(D13="",E13="",F13="",H13="",I13="",J13=""),1,0) -> 0
A14: 3.1.9 | B14: Número de casos de incapacidade temporária e parcial | C14: 0 | D14: 0 | E14: 0 | F14: - | G14: 0 | H14: 0 | I14: 0 | J14: - | K14: =IF(OR(D14="",E14="",F14="",H14="",I14="",J14=""),1,0) -> 0
A16: Notas:
A17: (1) Considerar o total de n.º de dias perdidos com incapacidade (temporária ou permanente) absoluta. Por exemplo: 3 acidentes com ITA de 12, 5 e 74 dias, respectivamente, deverão ser registados 12+5=17 dias na coluna "Menos de 60 dias de baixa" e 74 dias na coluna "Mais de 60 dias".
A19: Observações:

Sheet Doenças Profissionais
A1: =IF(Identificação!C17="","",Identificação!C17) -> ESCOLA BÁSICA E SECUNDÁRIA COM PRÉ-ESCOLAR E CRECHE DO PORTO MONIZ
A2: =IF(Validação!E63="Preenchido","","Mensagem: " & Validação!E63 & "! " & Validação!E64) -> 
A3: 3.2 | B3: Doenças Profissionais | C3: Número de casos | D3: Número de dias perdidos
A4: 3.2.1 | B4: 0 | C4: 0 | D4: 0 | E4: =IF(OR(B4="",C4="",D4=""),1,0) -> 0 | F4: =SUM(E4,E5,E6,E7,E8) -> 0
A5: 3.2.2 | B5: 0 | C5: 0 | D5: 0 | E5: =IF(OR(B5="",C5="",D5=""),1,0) -> 0
A6: 3.2.3 | B6: 0 | C6: 0 | D6: 0 | E6: =IF(OR(B6="",C6="",D6=""),1,0) -> 0
A7: 3.2.4 | B7: 0 | C7: 0 | D7: 0 | E7: =IF(OR(B7="",C7="",D7=""),1,0) -> 0
A8: 3.2.5 | B8: 0 | C8: 0 | D8: 0 | E8: =IF(OR(B8="",C8="",D8=""),1,0) -> 0
A10: Notas:
A11: (1) Caso não existam ocorrências, introduzir zeros '0' em todos os campos.
A13: Observações:

Sheet Higiene Segurança Trab.
A1: =IF(Identificação!C17="","",Identificação!C17) -> ESCOLA BÁSICA E SECUNDÁRIA COM PRÉ-ESCOLAR E CRECHE DO PORTO MONIZ
A2: =IF(Validação!E66="Preenchido","","Mensagem: " & Validação!E66 & "! " & Validação!E67) -> 
A3: 3.3 | B3: Actividades de medicina do trabalho
A4: 3.3.1 | B4: Número de exames médicos efectuados | C4: =SUM(C5,C6,C7,C8) -> 0
A5: 3.3.1.1 | B5: Exames de admissão | C5: 0 | D5: =IF(C5="",1,0) -> 0 | E5: =SUM(D5,D6,D7,D8,D9) -> 0
A6: 3.3.1.2 | B6: Exames periódicos | C6: 0 | D6: 0
A7: 3.3.1.3 | B7: Exames ocasionais e complementares | C7: 0 | D7: 0
A8: 3.3.1.4 | B8: Exames de cessação de funções | C8: 0 | D8: 0
A9: 3.3.2 | B9: Despesa com a medicina do trabalho (em euros) | C9: 0 | D9: 0
A10: 3.3.3 | B10: Número de visitas aos postos de trabalho | C10: 0 | D10: 0
A11: =IF(Validação!E69="Preenchido","","Mensagem: " & Validação!E69 & "! " & Validação!E70) -> 
A12: 3.4 | B12: Comissões de higiene e segurança
A13: 3.4.1 | B13: Reuniões anuais de higiene e segurança | C13: 0 | D13: =IF(C13="",1,0) -> 0 | E13: =SUM(D13,D14) -> 0
A14: 3.4.2 | B14: Visitas aos locais de trabalho | C14: 0 | D14: =IF(C14="",1,0) -> 0
A15: =IF(Validação!E72="Preenchido","","Mensagem: " & Validação!E72 & "! " & Validação!E73) -> 
A16: 3.5 | B16: Número de pessoas recolocadas em resultado de acidentes de trabalho | C16: 0 | E16: =IF(C16="",1,0) -> 0
A17: =IF(Validação!E75="Preenchido","","Mensagem: " & Validação!E75 & "! " & Validação!E76) -> 
A18: 3.6 | B18: Acções de formação e sensibilização em matéria de segurança
A19: 3.6.1 | B19: Número de acções desenvolvidas | C19: 0 | D19: =IF(C19="",1,0) -> 0 | E19: =SUM(D19,D20) -> 0
A20: 3.6.2 | B20: Número de pessoas abrangidas pelas acções | C20: 0 | D20: =IF(C20="",1,0) -> 0
A22: Observações:

Sheet Custos Prevenção Acidentes
A1: =IF(Identificação!C17="","",Identificação!C17) -> ESCOLA BÁSICA E SECUNDÁRIA COM PRÉ-ESCOLAR E CRECHE DO PORTO MONIZ
A2: =IF(Validação!E78="Preenchido","","Mensagem: " & Validação!E78 & "! " & Validação!E79) -> 
A3: 3.7 | B3: Custos com a prevenção de acidentes e doenças profissionais | C3: Valor em euros
A4: 3.7.1 | B4: Encargos de estrutura de medicina do trabalho e segurança no trabalho | C4: 0 | D4: =IF(C4="",1,0) -> 0 | E4: =SUM(D4,D5,D6,D7,D8) -> 0 | F4: =IF(AND('Higiene Segurança Trab.'!C19<>0,C6=0),"ALERTA","OK") -> OK
A5: 3.7.2 | B5: Custos com equipamentos de protecção | C5: 0 | D5: =IF(C5="",1,0) -> 0
A6: 3.7.3 | B6: Custos com formação em prevenção de riscos | C6: 0 | D6: =IF(C6="",1,0) -> 0
A7: 3.7.4 | B7: Outros custos | C7: 0 | D7: =IF(C7="",1,0) -> 0
A9: Por favor enuncie quais as situações referidas em "Outros custos" (3.7.4):
D10: =IF(AND(C7<>0,A10=""),"ERRO","OK") -> OK
A12: Observações:

Sheet Formação Prof Niveis Custos
A1: =IF(Identificação!C17="","",Identificação!C17) -> ESCOLA BÁSICA E SECUNDÁRIA COM PRÉ-ESCOLAR E CRECHE DO PORTO MONIZ
A2: =IF(Validação!E81="Preenchido","","Mensagem: " & Validação!E81 & "! " & Validação!E82) -> 
A3: Formação Profissional
A4: 4. | B4: Duração das acções | C4: Menos de 30 horas | F4: De 30 a 59 horas | H4: De 60 a 119 horas | K4: 120 horas ou mais
A5: 4.1 | B5: Número total de acções | C5: =SUM(C6,C7) -> 53 | F5: =SUM(F6,F7) -> 3 | H5: =SUM(H6,H7) -> 0 | K5: =SUM(M6,M7) -> 0
A6: 4.1.1 | B6: Número de acções internas (1) | C6: 1 | F6: 2 | H6: 0 | K6: 0 | N6: =IF(OR(C6="",F6="",H6="",K6=""),1,0) -> 0 | O6: =SUM(N6,N7) -> 0 | P6: =IF(AND(SUM(C6:M6)>0,M11=0),"ERROINT2",IF(AND(SUM(C7:M7)>0,M12=0),"ERROEXT2",IF(AND(SUM(C5:M5)>0,M10=0),"ERRO","OK"))) -> OK
A7: 4.1.2 | B7: Número de acções externas (2) | C7: 52 | F7: 1 | H7: 0 | K7: 0 | N7: =IF(OR(C7="",F7="",H7="",K7=""),1,0) -> 0
A8: =IF(Validação!E84="Preenchido","","Mensagem: " & Validação!E84 & "! " & Validação!E85) -> 
A9: Níveis de qualificação | C9: Dirigente | D9: Técnico Superior | E9: Assistente Técnico | F9: Assistente Operacional | G9: Carreiras e Categorias subsistentes | H9: Carreiras e Corpos especiais | I9: Carreira Médica | J9: Carreira de Enfermagem | K9: Carreira Docente | L9: Outros | M9: Total
A10: 4.2 | B10: Número total de participantes (3) | C10: =SUM(C11,C12) -> 2 | D10: 0 | E10: 0 | F10: 0 | G10: 0 | H10: 1 | I10: 0 | J10: 0 | K10: 55 | L10: 0 | M10: =SUM(C10:L10) -> 58
A11: 4.2.1 | B11: Número de participações em acções internas | C11: 0 | D11: 0 | E11: 0 | F11: 0 | G11: 0 | H11: 0 | I11: 0 | J11: 0 | K11: 3 | L11: 0 | M11: 3 | N11: =IF(OR(C11="",D11="",E11="",F11="",G11="",H11="",I11="",J11="",L11="",K11=""),1,0) -> 0 | O11: =SUM(N11,N12) -> 0
A12: 4.2.2 | B12: Número de participações em acções externas | C12: 2 | D12: 0 | E12: 0 | F12: 0 | G12: 0 | H12: 1 | I12: 0 | J12: 0 | K12: 52 | L12: 0 | M12: 55 | N12: =IF(OR(C12="",D12="",E12="",F12="",G12="",H12="",I12="",J12="",L12="",K12=""),1,0) -> 0
A13: 4.3 | B13: Número total de horas (4) | C13: =SUM(C14,C15) -> 50 | D13: 0 | E13: 0 | F13: 0 | G13: 0 | H13: 23 | I13: 0 | J13: 0 | K13: 867 | L13: 0 | M13: 940
A14: 4.3.1 | B14: Número de horas em acções internas | C14: 0 | D14: 0 | E14: 0 | F14: 0 | G14: 0 | H14: 0 | I14: 0 | J14: 0 | K14: 85 | L14: 0 | M14: 85 | N14: =IF(OR(C14="",D14="",E14="",F14="",G14="",H14="",I14="",J14="",L14="",K14=""),1,0) -> 0 | O14: =SUM(N14,N15) -> 0
A15: 4.3.2 | B15: Número de horas em acções externas | C15: 50 | D15: 0 | E15: 0 | F15: 0 | G15: 0 | H15: 23 | I15: 0 | J15: 0 | K15: 782 | L15: 0 | M15: 855 | N15: =IF(OR(C15="",D15="",E15="",F15="",G15="",H15="",I15="",J15="",L15="",K15=""),1,0) -> 0
A16: =IF(Validação!E87="Preenchido","","Mensagem: " & Validação!E87 & "! " & Validação!E88) -> Mensagem: Preenchido com reservas! Por favor confirme se as acções de formação interna não implicaram custos.
A17: 4.4 | B17: Custos totais de formação | H17: Valor em euros | P17: =IF(AND(SUM(C6:M6)<>0,H18=0),"ERROCUSINT",IF(AND(SUM(C7:M7)<>0,H19=0),"ERROCUSEXT","OK")) -> ERROCUSINT
A18: 4.4.1 | B18: Custos em acções internas | H18: 0 | N18: =IF(H18="",1,0) -> 0 | O18: =SUM(N18,N19) -> 0
A19: 4.4.2 | B19: Custos em acções externas | H19: 0 | N19: =IF(H19="",1,0) -> 0
C20: =IF(OR(C14<C11,AND(C11=0,C14<>0)),"ERROINT",IF(OR(C15<C12,AND(C12=0,C15<>0)),"ERROEXT","OK")) -> OK | D20: OK | E20: OK | F20: OK | G20: OK | H20: OK | I20: OK | J20: OK | K20: OK | L20: OK
A21: Notas:
A22: (1) Considerar toda a formação providenciada aos trabalhadores pelo serviço recorrendo a meios próprios e/ou em que apenas participam elementos desse mesmo serviço.
A23: (2) As acções de formação providenciadas aos trabalhadores pelo serviço recorrendo a entidades externas e em que participam também trabalhadores de outros serviços (ex.: formações promovidas pela Direcção Regional de Educação, Direcção Regional dos Recursos Humanos e da Administração Educativa, Direcção Regional de Administração Pública e Local, etc.) e as da iniciativa do próprio trabalhador, ao abrigo do regime de auto-formação (ex: formações dinamizadas por sindicatos, empresas de formação, etc.), deverão ser registadas como acções externas.
A24: (3) Atendendo à possibilidade de um mesmo trabalhador frequentar diversas acções formação por ano e que todas elas deverão ser quantificadas, devem ser consideradas todas as participações, independentemente de se tratar do mesmo trabalhador.
A25: (4) Deverá ser indicada a soma de todas as horas de formação acumualdas de todos os participantes e não a mera soma da duração das diferentes ações de formação.
A27: Observações:

Sheet Prestações Sociais Acção Social
A1: =IF(Identificação!C17="","",Identificação!C17) -> ESCOLA BÁSICA E SECUNDÁRIA COM PRÉ-ESCOLAR E CRECHE DO PORTO MONIZ
A2: =IF(Validação!E90="Preenchido","","Mensagem: " & Validação!E90 & "! " & Validação!E91) -> 
A3: 5. | B3: Prestações Sociais | C3: Valor em euros
A4: 5.1 | B4: Subsídios no ambito da proteção da parentalidade | C4: 17715.42 | D4: =IF(C4="",1,0) -> 0 | E4: =SUM(D4,D5,D6,D7,D8,D9,D10,D11) -> 0 | F4: =IF(AND(C11="",'Ausências Trabalho'!N8<>0),"ALERTA","OK") -> OK
A5: 5.2 | B5: Abono de Família | C5: 5257.5 | D5: =IF(C5="",1,0) -> 0
A6: 5.3 | B6: Subsídio de educação especial | C6: 0 | D6: 0
A7: 5.4 | B7: Subsídio mensal vitalício | C7: 0 | D7: 0
A8: 5.5 | B8: Subsídio de funeral | C8: 0 | D8: 0
A9: 5.6 | B9: Subsídio de refeição | C9: 108957.24 | D9: 0
A10: 5.7 | B10: Subsídio por morte | C10: 0 | D10: 0
A11: 5.8 | B11: Outras | C11: 1410.1 | D11: 0
A12: =IF(Validação!E93="Preenchido","","Mensagem: " & Validação!E93 & "! " & Validação!E94) -> 
A13: 5.9 | B13: Prestações de acção social complementar | C13: Valor em euros
A14: 5.9.1 | B14: Grupos desportivos/casa de pessoal (ou equivalente) | C14: 0 | D14: =IF(C14="",1,0) -> 0 | E14: =SUM(D14,D15,D16,D17,D18,D19,D20) -> 0
A15: 5.9.2 | B15: Refeitórios | C15: 0 | D15: 0
A16: 5.9.3 | B16: Infantários | C16: 0 | D16: 0
A17: 5.9.4 | B17: Colónias de férias | C17: 0 | D17: 0
A18: 5.9.5 | B18: Apoio a estudos | C18: 0 | D18: 0
A19: 5.9.6 | B19: Adiantamentos e empréstimos | C19: 0 | D19: 0
A20: 5.9.7 | B20: Outras | C20: 0 | D20: 0
A22: Por favor enuncie quais as situações referidas em "Outras" (5.8 e 5.9.7):
A23: 5.8. OUTROS: Prestações Sociais/Subsídios | D23: =IF(OR(AND(C11<>0,A23=""),AND(C20<>0,A23="")),"ERRO","OK") -> OK
A25: Observações:

Sheet Relaç Profis Comissões Discipli
A1: =IF(Identificação!C17="","",Identificação!C17) -> ESCOLA BÁSICA E SECUNDÁRIA COM PRÉ-ESCOLAR E CRECHE DO PORTO MONIZ
A2: =IF(Validação!E96="Preenchido","","Mensagem: " & Validação!E96 & "! " & Validação!E97) -> 
A3: 6. | B3: Relações Profissionais
A4: 6.1 | B4: Organização e actividade sindical no serviço
A5: 6.1.1 | B5: Número de trabalhadores sindicalizados | C5: 44 | D5: =IF(C5="",1,0) -> 0 | E5: =IF(AND('Horas Não Trabalhadas'!N6<>0,C5=0),"ERRO","OK") -> OK
A6: =IF(Validação!E99="Preenchido","","Mensagem: " & Validação!E99 & "! " & Validação!E100) -> 
A7: 6.2 | B7: Comissões de trabalhadores
A8: 6.2.1 | B8: Número de elementos pertencentes a comissões de trabalhadores | C8: 0 | D8: =IF(C8="",1,0) -> 0 | E8: =SUM(D8,D9) -> 0
A9: 6.2.2 | B9: Número total de votantes | C9: 0 | D9: =IF(C9="",1,0) -> 0
A10: =IF(Validação!E102="Preenchido","","Mensagem: " & Validação!E102 & "! " & Validação!E103) -> 
A11: 6.3 | B11: Disciplina
A12: 6.3.1 | B12: Número de processos transitados do ano anterior | C12: 0 | D12: =IF(C12="",1,0) -> 0 | E12: =SUM(D12,D13,D14) -> 0 | F12: =IF(C14>(C12+C13),"ERRO","OK") -> OK
A13: 6.3.2 | B13: Número de processos instaurados durante o ano | C13: 0 | D13: =IF(C13="",1,0) -> 0
A14: 6.3.3 | B14: Número de processos transitados para o ano seguinte | C14: 0 | D14: =IF(C14="",1,0) -> 0
A15: =IF(Validação!E105="Preenchido","","Mensagem: " & Validação!E105 & "! " & Validação!E106) -> 
A16: 6.3.4 | B16: Número de processos decididos | C16: =SUM(C17:C22) -> 0
A17: 6.3.4.1 | B17: Arquivado | C17: 0 | D17: =IF(C17="",1,0) -> 0 | E17: =SUM(D17,D18,D19,D20,D21,D22) -> 0 | F17: =IF((C12+C13-C14)<>C16,"ERRO","OK") -> OK
A18: 6.3.4.2 | B18: Repreensão escrita | C18: 0 | D18: 0
A19: 6.3.4.3 | B19: Multa | C19: 0 | D19: 0
A20: 6.3.4.4 | B20: Suspensão | C20: 0 | D20: 0
A21: 6.3.4.5 | B21: Demissão ou despedimento por facto imputável ao trabalhador | C21: 0 | D21: 0
A22: 6.3.4.6 | B22: Cessação da comissão de serviço | C22: 0 | D22: 0
A24: Observações:
